Cogmind - Beta 14 @@@ ROGUE MODE // 2024.11.25 @ 21:35:41 Player: Dosh Result: Escaped! Performance ------------- Evolutions (9) 4500 Regions Visited (39) 7800 Robots Destroyed (327) 1635 Value Destroyed (13046) 13046 Prototype IDs (83) 1660 Alien Tech Used (0) 0 Bonus (11865) 11865 TOTAL SCORE: 40506 Bonus ------- Triggered Max Security 1000 High Alert Combat Kills 832 Follower Combat Kills 735 Entered Garrisons 1800 Used RIF Installer 500 Entered DSFs 500 Aligned with FarCom 300 Acquired ECA 300 Met Warlord at Base 500 MAIN.C Attacked Warlord 500 Met Warlord at Command 2000 Win 3000 Friendly Fire -102 Cogmind --------- Core Integrity 1552/1600 Matter 300/300 Energy 486/490 System Corruption 0% Temperature Cool (8) Movement Flying (84) Ox1 Location To Epsilon Eridani Parts ------- > --- POWER (2) -------- Improved Quantum Reactor Zero-point Reactor > --- PROPULSION (8) --- Cooled Impulse Thruster Cooled Impulse Thruster Cooled Impulse Thruster Cooled Impulse Thruster Cooled Impulse Thruster Cooled Impulse Thruster Cooled Impulse Thruster Experimental Q-thruster > --- UTILITY (13) ----- Experimental Heat Sink Advanced Coolant Injector Medium Storage Unit Enhanced Optical Array Experimental Core Analyzer Advanced Kinecellerator Stasis Canceller Advanced Reaction Control System Hacking Suite Advanced Hacking Suite Advanced Hacking Suite Advanced Hacking Suite Advanced System Shield > --- WEAPON (2) ------- Multirail Multirail > --- INVENTORY (10) --- Zero-point Reactor Advanced Matter Compressor (400) ECM Suite Advanced Phase Shifter Improved Cloaking Device System Restoration Module Cooled Plasma Cannon Smartbomb Launcher Ionic Axe Peak State ------------ > --- POWER ------------ Improved Quantum Reactor Zero-point Reactor > --- PROPULSION ------- Cooled Impulse Thruster Cooled Impulse Thruster Cooled Impulse Thruster Cooled Impulse Thruster Cooled Impulse Thruster Cooled Impulse Thruster Cooled Impulse Thruster Experimental Q-thruster > --- UTILITY ---------- Experimental Heat Sink Advanced Coolant Injector Medium Storage Unit Enhanced Optical Array Experimental Core Analyzer Advanced Kinecellerator Stasis Canceller Advanced Reaction Control System Hacking Suite Advanced Hacking Suite Advanced Hacking Suite Advanced Hacking Suite Advanced System Shield > --- WEAPON ----------- Multirail Multirail > --- INVENTORY -------- Zero-point Reactor Advanced Matter Compressor ECM Suite Advanced Phase Shifter Improved Cloaking Device System Restoration Module Cooled Plasma Cannon Smartbomb Launcher Ionic Axe [Rating: 203] Favorites ----------- Power Cooled Ion Engine Engine Cooled Ion Engine Power Core Cooled Fission Core Reactor Light Antimatter Reactor Propulsion Cooled Impulse Thruster Treads Advanced Treads Wheel Armored Wheel Flight Unit Cooled Impulse Thruster Utility Hacking Suite Device Structural Scanner Storage Huge Storage Unit Processor Improved Targeting Computer Hackware Hacking Suite Protection Experimental Utility Shielding Weapon Heavy EM Shotgun Energy Gun Heavy EM Shotgun Energy Cannon Cooled Plasma Cannon Ballistic Gun Assault Rifle Ballistic Cannon Improved Light Cannon Launcher Improved Grenade Launcher Special Weapon Field Lobotomy Kit Impact Weapon Powered Hammer Slashing Weapon Ionic Axe Special Melee Weapon Datajack Build | -11 -10 -10 -9 -9 -9 -8 -8 -8 -8 -8 -8 -7 -7 -7 -7 -6 -6 -6 -6 -5 -5 -5 -5 -4 -4 -4 -4 -4 -4 -4 -4 -4 -4 -4 -3 -2 -2 -1 -1 ------- Run | Yrd Mat Min Mat Min Exi Min Mat Gar Mat Gar Mat Fac Gar Fac Gar Fac Was Fac Gar Fac Upp Upp War Pro Fac Gar Fac Gar Fac Gar Fac Gar Fac DSF Res Res Tes Acc Com Slots Evolved 18 | . . . 2 . . . 2 . . . . 2 . . . 2 . . . 2 . . . . 2 . . . . . . . . . 2 2 . 2 . Power 1 | . . . . . . . . . . . . . . . . . . . . 1 . . . . . . . . . . . . . . . . . . . Propulsion 6 | . . . 1 . . . 1 . . . . . . . . 1 . . . 1 . . . . 1 . . . . . . . . . . 1 . . . Utility 11 | . . . 1 . . . 1 . . . . 2 . . . 1 . . . . . . . . 1 . . . . . . . . . 2 1 . 2 . Weapon . | . . . . . . . . . . . . . . . . . . . . . . . . . . . . . . . . . . . . . . . . Parts Attached 390 | 6 10 2 23 . . . 9 17 20 26 19 42 7 12 9 5 . 30 3 27 . . 6 . 24 6 15 4 11 3 21 7 1 1 1 5 4 . 14 Power 43 | 1 2 1 4 . . . 1 . 3 2 1 5 . 1 2 . . 2 . 4 . . . . 3 . . . 3 . 2 . . . . 2 3 . 1 Engine 13 | 1 2 . 4 . . . 1 . 2 . . 1 . . 1 . . . . 1 . . . . . . . . . . . . . . . . . . . Core 24 | . . 1 . . . . . . 1 2 1 3 . 1 1 . . 2 . 3 . . . . 3 . . . 3 . 2 . . . . . 1 . . Reactor 6 | . . . . . . . . . . . . 1 . . . . . . . . . . . . . . . . . . . . . . . 2 2 . 1 Propulsion 78 | 2 1 1 12 . . . 1 . 5 4 4 10 . 2 . 2 . 8 . 10 . . . . 6 . 1 . 2 . 6 . . . . . 1 . . Treads 25 | 2 1 1 11 . . . 1 . 5 3 . 1 . . . . . . . . . . . . . . . . . . . . . . . . . . . Leg . | . . . . . . . . . . . . . . . . . . . . . . . . . . . . . . . . . . . . . . . . Wheel 4 | . . . . . . . . . . . 4 . . . . . . . . . . . . . . . . . . . . . . . . . . . . Hover . | . . . . . . . . . . . . . . . . . . . . . . . . . . . . . . . . . . . . . . . . Flight 49 | . . . 1 . . . . . . 1 . 9 . 2 . 2 . 8 . 10 . . . . 6 . 1 . 2 . 6 . . . . . 1 . . Utility 140 | 1 2 . 2 . . . 3 . 8 7 4 21 5 5 1 2 . 17 3 10 . . . . 12 2 5 2 6 2 7 2 . 1 1 3 . . 6 Device 79 | . . . . . . . 1 . 7 5 1 8 3 2 1 . . 10 2 5 . . . . 6 2 4 2 5 2 5 2 . 1 1 1 . . 3 Storage 8 | 1 1 . 1 . . . . . . . 1 . . . . . . . . . . . . . 3 . 1 . . . . . . . . . . . . Processor 6 | . 1 . . . . . . . . . . 1 . . . . . 1 . . . . . . . . . . . . . . . . . 1 . . 2 Hackware 15 | . . . 1 . . . . . . . . 5 . . . 1 . 2 . 2 . . . . 2 . . . . . 1 . . . . . . . 1 Protection 32 | . . . . . . . 2 . 1 2 2 7 2 3 . 1 . 4 1 3 . . . . 1 . . . 1 . 1 . . . . 1 . . . Artifact . | . . . . . . . . . . . . . . . . . . . . . . . . . . . . . . . . . . . . . . . . Weapon 129 | 2 5 . 5 . . . 4 17 4 13 10 6 2 4 6 1 . 3 . 3 . . 6 . 3 4 9 2 . 1 6 5 1 . . . . . 7 Energy Gun 33 | . 2 . 3 . . . 2 12 2 6 5 . . . . . . . . . . . 1 . . . . . . . . . . . . . . . . Energy Cannon 20 | . . . . . . . . . . . . 1 . 2 1 1 . 2 . 2 . . 1 . 1 1 4 . . . 3 1 . . . . . . . Ballistic Gun 9 | 2 3 . 1 . . . . . . . 1 . . . . . . . . . . . . . . . . . . . . . . . . . . . 2 Ballistic Cannon 2 | . . . 1 . . . . . . . . . . 1 . . . . . . . . . . . . . . . . . . . . . . . . . Launcher 24 | . . . . . . . . 4 . 2 1 2 1 . 2 . . . . . . . 2 . 1 1 2 1 . 1 . 2 . . . . . . 2 Special Weapon 3 | . . . . . . . . . . . . . . . 1 . . 1 . . . . . . . . . . . . . . . . . . . . 1 Impact Weapon 5 | . . . . . . . . . . . . 2 1 1 1 . . . . . . . . . . . . . . . . . . . . . . . . Slashing Weapon 30 | . . . . . . . 1 1 2 5 1 1 . . 1 . . . . 1 . . 2 . 1 2 3 1 . . 3 2 1 . . . . . 2 Piercing Weapon . | . . . . . . . . . . . . . . . . . . . . . . . . . . . . . . . . . . . . . . . . Special Melee Weapon 3 | . . . . . . . 1 . . . 2 . . . . . . . . . . . . . . . . . . . . . . . . . . . . Unidentified Prototypes 20 | . . . 3 . . . . . . . . . . 1 . 1 . 3 . 1 . . 2 . . . 1 . . . . . . . . . 2 . 6 Parts Lost 36 | . 2 1 1 . . . 3 1 4 7 5 1 . . 3 . 1 . 2 3 . . . . . . . . . . . . . . . . . . 2 Power 5 | . . . . . . . . . 2 1 . 1 . . . . . . . . . . . . . . . . . . . . . . . . . . 1 Propulsion 11 | . . 1 1 . . . . . 1 4 2 . . . 1 . . . . 1 . . . . . . . . . . . . . . . . . . . Utility 11 | . . . . . . . 1 . . 2 2 . . . 1 . 1 . 2 1 . . . . . . . . . . . . . . . . . . 1 Weapon 9 | . 2 . . . . . 2 1 1 . 1 . . . 1 . . . . 1 . . . . . . . . . . . . . . . . . . . Highest Loss Streak 3 | . 1 1 1 . . . 1 1 2 3 2 1 . . 3 . 1 . 2 1 . . . . . . . . . . . . . . . . . . 2 To Critical Strikes 1 | . . . . . . . . . . . 1 . . . . . . . . . . . . . . . . . . . . . . . . . . . . Average Slot Usage (%) 95 | . 99 100 98 100 100 100 99 100 98 93 89 90 92 89 85 73 86 94 91 90 100 100 98 100 95 94 93 94 92 94 90 94 94 94 90 86 91 88 87 Engine 5 | . 14 6 10 11 11 11 9 9 8 3 . 1 . . 1 6 6 1 . . . . . . . . . . 1 . . . . . . . . . . Core 4 | . . 7 . . . . . . . 4 9 5 7 6 5 . . 4 6 7 11 11 11 11 10 10 10 10 8 10 9 10 10 10 9 4 2 . . Treads 17 | . 28 28 32 33 33 33 35 36 35 30 12 . . . . . . . . . . . . . . . . . . . . . . . . . . . . Flight 13 | . . . . . . . . . . . . 29 30 28 25 19 26 31 33 32 35 35 35 35 33 36 35 36 35 36 33 36 36 36 33 30 30 32 32 Device 6 | . . . . . . . 1 9 13 13 15 4 2 2 2 . . 5 5 10 5 5 5 5 9 10 10 10 10 10 6 9 10 10 14 16 17 16 13 Storage 7 | . 20 14 11 11 11 11 9 9 9 9 9 . . . . . . . . . . . . . 1 5 5 5 5 5 5 5 5 5 4 4 4 4 4 Processor 4 | . 6 14 11 11 11 11 7 . . . . 6 7 7 7 6 6 2 . . . . . . . . . . . . . . . . . 2 4 4 4 Hackware 14 | . . . 10 11 11 11 9 9 9 9 2 27 30 30 30 26 33 29 31 22 23 23 23 23 21 21 21 21 21 21 24 21 21 21 19 17 17 16 17 Protection 4 | . . . . . . . 9 9 4 4 5 4 4 4 2 6 6 4 6 4 11 11 11 11 8 5 5 5 4 5 4 5 5 5 4 1 4 4 3 Energy Gun 8 | . 4 . 18 22 22 22 17 16 17 12 13 . . . . . . . . . . . . . . . . . . . . . . . . . . . . Ballistic Gun 2 | . 22 28 2 . . . . . . . 2 . . . . . . . . . . . . . . . . . . . . . . . . . . . 1 Slashing Weapon 2 | . . . . . . . . . . 2 2 3 . . 3 6 6 6 6 5 5 5 5 5 4 3 2 4 5 4 3 3 5 5 4 4 4 4 3 Peak Build Rating 203 | 6 9 13 32 32 32 32 37 37 38 36 33 50 50 54 52 52 52 94 86 112 112 112 117 112 129 134 130 135 131 135 131 139 135 135 134 149 161 161 203 Average Rating 54 | 4 8 10 25 32 31 32 36 35 34 30 29 44 48 47 45 44 51 64 80 88 112 112 110 112 118 127 122 131 121 131 121 132 132 133 134 142 150 160 166 On Entrance 80 | . 6 9 13 32 32 32 32 33 34 36 29 33 49 46 49 45 52 49 82 74 112 112 112 112 112 120 129 121 131 122 135 129 139 135 133 134 149 161 161 Naked Turns . | . . . . . . . . . . . . . . . . . . . . . . . . . . . . . . . . . . . . . . . . Heaviest Build 105 | 10 35 28 96 96 96 96 103 101 102 105 102 102 20 17 22 15 15 32 30 40 39 39 39 39 44 45 45 46 41 46 45 46 40 40 39 49 49 48 70 Greatest Support 89 | 40 40 40 66 66 66 66 88 88 89 89 60 50 28 20 22 20 20 45 44 42 42 54 54 42 42 61 57 64 54 61 49 58 49 61 64 49 55 55 70 Greatest Overweight (x) 7 | . . . 2 1 1 1 1 1 1 2 7 2 . 1 . . . . . . . . . . 1 . 1 . . . 1 . . . . . . . 1 Average Overweight (x) . | . . . . 1 1 1 1 1 1 1 1 . . . . . . . . . . . . . . . . . . . . . . . . . . . . Largest Inventory Capacity 25 | 8 15 15 25 25 25 25 25 25 25 25 25 25 5 5 5 5 5 5 5 5 5 5 5 5 20 10 10 10 10 10 10 10 10 10 10 10 10 10 10 Average Capacity 16 | 7 14 15 23 25 25 25 25 25 25 25 25 5 5 5 5 5 5 5 5 5 5 5 5 5 6 10 10 10 10 10 10 10 10 10 10 10 10 10 10 Most Carried 25 | 2 11 15 25 25 25 25 25 25 25 25 25 25 5 5 5 5 5 5 5 5 5 5 5 5 8 8 10 10 10 10 10 10 10 10 9 10 10 10 10 Average Carried 14 | 1 7 12 21 25 24 25 24 24 24 22 23 5 5 4 4 4 5 4 4 4 5 5 4 5 5 7 7 8 9 9 9 9 9 10 9 9 10 9 9 Final Capacity 25 | 8 15 15 25 25 25 25 25 25 25 25 25 5 5 5 5 5 5 5 5 5 5 5 5 5 10 10 10 10 10 10 10 10 10 10 10 10 10 10 10 Final Carried 25 | 2 11 15 25 25 25 25 25 24 25 23 25 5 5 5 5 5 5 5 4 5 5 5 5 5 8 8 8 9 10 9 10 9 10 10 9 10 10 10 10 Class Distribution -------------------- 45% | Mutant 35% | Hacker-Sprinter 12% | Scavenger-Mutant 3% | Wizard-Sprinter Dominant Class ---------------- Mutant | -10/Materials Mutant | -10/Mines Scavenger-Mutant | -9/Materials Mutant | -9/Mines Mutant | -9/Exiles Mutant | -8/Mines Mutant | -8/Materials Mutant | -8/Garrison Mutant | -8/Materials Scavenger-Mutant | -8/Garrison Mutant | -8/Materials Hacker-Sprinter | -7/Factory Hacker-Sprinter | -7/Garrison Hacker-Sprinter | -7/Factory Hacker-Sprinter | -7/Garrison Hacker-Sprinter | -6/Factory Hacker-Sprinter | -6/Waste Hacker-Sprinter | -6/Factory Hacker-Sprinter | -6/Garrison Hacker-Sprinter | -5/Factory Hacker-Sprinter | -5/Upper Caves Hacker-Sprinter | -5/Upper Caves Hacker-Sprinter | -5/Warlord Hacker-Sprinter | -4/Proximity Caves Hacker-Sprinter | -4/Factory Hacker-Sprinter | -4/Garrison Hacker-Sprinter | -4/Factory Hacker-Sprinter | -4/Garrison Hacker-Sprinter | -4/Factory Hacker-Sprinter | -4/Garrison Wizard-Sprinter | -4/Factory Hacker-Sprinter | -4/Garrison Hacker-Sprinter | -4/Factory Hacker-Sprinter | -4/DSF Hacker-Sprinter | -3/Research Hacker-Ninja | -2/Research Hacker-Ninja | -2/Testing Hacker-Ninja | -1/Access Hacker-Sprinter | -1/Command Resources | -11 -10 -10 -9 -9 -9 -8 -8 -8 -8 -8 -8 -7 -7 -7 -7 -6 -6 -6 -6 -5 -5 -5 -5 -4 -4 -4 -4 -4 -4 -4 -4 -4 -4 -4 -3 -2 -2 -1 -1 ----------- Run | Yrd Mat Min Mat Min Exi Min Mat Gar Mat Gar Mat Fac Gar Fac Gar Fac Was Fac Gar Fac Upp Upp War Pro Fac Gar Fac Gar Fac Gar Fac Gar Fac DSF Res Res Tes Acc Com Matter Collected 7186 | 162 343 154 343 . . . 111 273 276 521 323 371 . 274 149 38 . 306 71 397 30 . 60 . 518 . 435 93 227 . 316 427 . . . 256 420 . 292 Remotely . | . . . . . . . . . . . . . . . . . . . . . . . . . . . . . . . . . . . . . . . . Salvage Created 10734 | . 657 308 971 99 . 33 1620 624 1108 684 502 402 17 285 206 19 . 100 71 205 . . . . 862 . 286 127 227 20 316 283 . . . 235 100 . 367 Parts 663 | . 46 16 70 2 . 4 93 58 77 42 32 33 3 2 6 1 . 12 2 15 . . . . 35 . 14 10 12 4 19 14 . . . 10 7 . 24 Haulers Intercepted 18 | . 2 . 5 . . . 4 . 2 . 2 . . . . . . . . 1 . . . . 2 . . . . . . . . . . . . . . Recyclers Shooed 5 | . . . . . . . 2 . . . 1 . . . . . . . . . . . . . 1 . . . . . . . . . . . . . 1 Parts Field Recycled . | . . . . . . . . . . . . . . . . . . . . . . . . . . . . . . . . . . . . . . . . Retrieved Matter . | . . . . . . . . . . . . . . . . . . . . . . . . . . . . . . . . . . . . . . . . Parts Self-Destructed 6 | . . . . . . . . . . . . . . . . . . . . . 6 . . . . . . . . . . . . . . . . . . Prevented 4 | . . . . . . . . . . . . . . . . . . . . . 4 . . . . . . . . . . . . . . . . . . Kills | -11 -10 -10 -9 -9 -9 -8 -8 -8 -8 -8 -8 -7 -7 -7 -7 -6 -6 -6 -6 -5 -5 -5 -5 -4 -4 -4 -4 -4 -4 -4 -4 -4 -4 -4 -3 -2 -2 -1 -1 ------- Run | Yrd Mat Min Mat Min Exi Min Mat Gar Mat Gar Mat Fac Gar Fac Gar Fac Was Fac Gar Fac Upp Upp War Pro Fac Gar Fac Gar Fac Gar Fac Gar Fac DSF Res Res Tes Acc Com Combat Hostiles Destroyed 200 | . 14 9 12 2 . 2 22 28 19 32 12 4 1 . 4 . . . . . . . . . 5 . 6 4 1 2 . 13 . . . . . . 8 Melee 4 | . . . . . . . . . . 1 . 1 . . . . . . . . . . . . . . . . 1 . . 1 . . . . . . . Guns 105 | . 14 9 10 1 . 2 18 11 19 12 9 . . . . . . . . . . . . . . . . . . . . . . . . . . . . Cannons 1 | . . . 1 . . . . . . . . . . . . . . . . . . . . . . . . . . . . . . . . . . . . AOE 87 | . . . . . . . 3 17 . 19 3 3 1 . 4 . . . . . . . . . 5 . 6 4 . 2 . 12 . . . . . . 8 Classes Destroyed 15 | . 7 . 4 . . . 1 3 . . . . . . . . . . . . . . . . . . . . . . . . . . . . . . . Worker 19 | . 1 . 2 . . 1 1 . 1 . 3 . . 3 . 1 . . . 1 . . . . 1 . 1 . . . 1 . . . . . . . 2 Builder 24 | . 1 . . . . . 4 . 4 . 1 5 . 1 . . . 2 . 2 . . . . 1 . 1 . 1 . 1 . . . . . . . . Tunneler 3 | . . . 1 . . . . . . . . . . 1 . . . . . . . . . . . . . . . . . . . . . 1 . . . Hauler 18 | . 2 . 5 . . . 4 . 2 . 2 . . . . . . . . 1 . . . . 2 . . . . . . . . . . . . . . Recycler 19 | . 1 . . . . . 3 . 1 . 1 1 . 1 . . . . . . . . . . 4 . 1 . 1 . 2 . . . . 1 . . 2 Mechanic 4 | . . . 1 . . . . . 1 . . . . 1 . . . . . . . . . . . . . . . . 1 . . . . . . . . Operator 8 | . . . 2 . . . 1 . 1 . 1 1 . . . . . 1 . 1 . . . . . . . . . . . . . . . . . . . Watcher 32 | . 3 . 4 . . . 5 . 3 . 2 3 . 2 . . . 2 . 1 . . . . 2 . 1 . 1 . 1 . . . . 2 . . . Swarmer 96 | . 9 3 4 . . 2 8 19 2 11 6 3 1 . . . . . . . . . . . 5 . 6 4 . 2 . 3 . . . . . . 8 Grunt 61 | . 5 6 3 2 . . 9 2 6 13 3 . . . 3 . . . . . . . . . . . . . 1 . . 8 . . . . . . . Brawler 6 | . . . . . . . 1 1 1 3 . . . . . . . . . . . . . . . . . . . . . . . . . . . . . Duelist 6 | . . . . . . . . 3 . 3 . . . . . . . . . . . . . . . . . . . . . . . . . . . . . Sentry 25 | . . . 5 . . . 4 1 10 2 3 . . . . . . . . . . . . . . . . . . . . . . . . . . . . Hunter 3 | . . . . . . . . 1 . . . . . . . . . . . . . . . . . . . . . . . 2 . . . . . . . Programmer 3 | . . . . . . . . 1 . . . 1 . . 1 . . . . . . . . . . . . . . . . . . . . . . . . Best Kill Streak 10 | . 3 3 3 2 . 2 6 9 8 8 7 4 1 7 3 1 . 2 . 3 . . . . 5 . 5 4 1 2 3 6 . . . 4 . . 10 Combat Bots Only 9 | . 3 3 2 2 . 2 4 9 2 8 3 3 1 . 3 . . . . . . . . . 5 . 3 4 1 2 . 6 . . . . . . 6 Max Kills in Single Turn 6 | . 1 2 2 1 . 1 5 4 3 3 4 4 1 1 2 1 . 1 . 1 . . . . 3 . 4 3 1 2 1 2 . . . 1 . . 6 Gunslinging 1 | . . 1 . . . . 1 . . . . . . . . . . . . . . . . . . . . . . . . . . . . . . . . Exploded 4 | . . . . . . . 1 4 . 3 1 3 1 . 2 . . . . . . . . . 3 . 3 3 . 2 . 2 . . . . . . 4 Melee 1 | . . . . . . . . . . 1 . 1 . . . . . . . . . . . . . . . . 1 . . 1 . . . . . . . Uniques/NPCs Destroyed . | . . . . . . . . . . . . . . . . . . . . . . . . . . . . . . . . . . . . . . . . Combat | -11 -10 -10 -9 -9 -9 -8 -8 -8 -8 -8 -8 -7 -7 -7 -7 -6 -6 -6 -6 -5 -5 -5 -5 -4 -4 -4 -4 -4 -4 -4 -4 -4 -4 -4 -3 -2 -2 -1 -1 -------- Run | Yrd Mat Min Mat Min Exi Min Mat Gar Mat Gar Mat Fac Gar Fac Gar Fac Was Fac Gar Fac Upp Upp War Pro Fac Gar Fac Gar Fac Gar Fac Gar Fac DSF Res Res Tes Acc Com Hostile Shots Fired 1118 | . 68 25 70 4 . 4 64 64 109 88 42 48 43 2 46 27 . 82 22 21 2 5 13 . 6 4 9 17 38 47 . 113 . 2 . . 2 . 31 Missed 471 | . 15 5 18 1 . 3 25 17 30 13 12 26 24 2 17 18 . 45 9 12 . 4 8 . 4 3 7 13 19 26 . 72 . 1 . . 2 . 20 Damage Taken 9753 | . 522 252 787 32 . 7 539 388 1127 1139 412 357 308 . 600 97 21 338 237 268 39 20 167 . 41 25 33 143 439 371 . 553 . 24 . . . . 467 Core 1522 | . 89 39 70 11 . 7 53 27 86 127 97 80 125 . 140 5 . 55 51 51 . . . . . . . 73 169 43 . 76 . . . . . . 48 Absorbed by Shields 432 | . . . . . . . 4 153 192 71 . 12 . . . . . . . . . . . . . . . . . . . . . . . . . . . Redirected to Shielding 512 | . . . . . . . . . . . . . . . . . . . . . 14 . 13 . . . . 11 89 115 . 105 . . . . . . 165 Ignored by Resistances 26 | . . . . . . . . . . . . 26 . . . . . . . . . . . . . . . . . . . . . . . . . . . Regen/Repaired (Parts) 2321 | . 88 . 158 . . . . . 466 . . 126 . 64 . 23 . . . 117 . . 52 . 163 . 48 . 265 . 646 . . . . 105 . . . Core Remaining (%) 77 | 100 . 48 . . . 78 . . . . 29 . . . 50 . . . 86 . . . . 94 . . . . . . . . . 68 100 . 100 . 97 Volleys Fired 551 | . 54 23 54 4 . 2 66 47 68 61 44 21 2 3 12 . . 7 . 5 . 2 . . 7 4 14 3 . 4 9 27 . . . . . . 8 Largest 2 | . 2 2 2 2 . 2 2 2 2 2 2 1 1 1 1 . . 1 . 1 . 1 . . 1 1 1 1 . 1 1 1 . . . . . . 1 Hottest 130 | . 65 40 100 100 . 100 100 130 130 130 130 90 39 30 36 . . 35 . 35 . 35 . . 46 105 46 46 . 46 35 46 . . . . . . 46 Shots Fired 949 | . 101 46 108 8 . 4 132 87 137 109 88 21 2 3 12 . . 8 . 5 . 2 . . 7 4 14 3 . 4 9 27 . . . . . . 8 Gun 780 | . 101 46 97 8 . 4 132 80 137 89 85 . . . . . . . . . . . . . . . . . . . . . . . . . . . 1 Cannon 77 | . . . 11 . . . . . . . . 20 . 3 . . . 7 . 5 . 2 . . 5 3 11 . . . 9 1 . . . . . . . Launcher 87 | . . . . . . . . 7 . 20 3 1 2 . 11 . . . . . . . . . 2 1 3 3 . 4 . 26 . . . . . . 4 Special 5 | . . . . . . . . . . . . . . . 1 . . 1 . . . . . . . . . . . . . . . . . . . . 3 Kinetic 174 | . 69 46 44 . . . . . . . 14 . . . . . . . . . . . . . . . . . . . . . . . . . . . 1 Thermal 343 | . . . . . . . . 24 93 89 71 20 . 3 . . . 7 . 5 . 2 . . 5 3 11 . . . 9 1 . . . . . . . Explosive 87 | . . . . . . . . 7 . 20 3 1 2 . 11 . . . . . . . . . 2 1 3 3 . 4 . 26 . . . . . . 4 Electromagnetic 340 | . 32 . 64 8 . 4 132 56 44 . . . . . . . . . . . . . . . . . . . . . . . . . . . . . . Robot Hit Streak 22 | . 10 14 18 8 . 1 9 10 17 22 13 2 . . 5 . . 1 . . . . . . . . 2 2 . . . . . . . . . . 4 Robot Miss Streak 13 | . 6 1 5 1 . 4 6 7 8 9 13 . 2 . 3 . . 1 . . . . . . . . 1 . . . 1 . . . . . . . 1 Penetration Max . | . . . . . . . . . . . . . . . . . . . . . . . . . . . . . . . . . . . . . . . . Secondary Targets 12 | . 1 1 . . . 1 2 2 3 2 . . . . . . . . . . . . . . . . . . . . . . . . . . . . . Max Gunslinging Chain 1 | . 1 1 . . . 1 1 1 1 1 . . . . . . . . . . . . . . . . . . . . . . . . . . . . . Shots Hit Robots 752 | . 68 37 85 7 . 2 97 45 119 94 76 14 . 9 11 2 . 9 5 8 . . . . 17 . 2 3 11 . 8 6 . . . 6 3 . 8 Core Hits 690 | . 35 19 42 3 . 2 68 56 127 123 85 10 1 . 13 . . 4 1 4 . . . . 14 . 10 4 2 8 4 32 . . . 4 2 . 17 Critical Kills 2 | . . . . . . . . . . . 1 1 . . . . . . . . . . . . . . . . . . . . . . . . . . . Critical Parts Destroyed 3 | . . . . . . . . . . . . . . 3 . . . . . . . . . . . . . . . . . . . . . . . . . Critical Strikes 9 | . . . . . . . . . . . 1 1 . 3 . . . . 2 1 . . . . . . . . . . . . . . . . 1 . . Destroy 1 | . . . . . . . . . . . 1 . . . . . . . . . . . . . . . . . . . . . . . . . . . . Smash 4 | . . . . . . . . . . . . 1 . 3 . . . . . . . . . . . . . . . . . . . . . . . . . Sever 4 | . . . . . . . . . . . . . . . . . . . 2 1 . . . . . . . . . . . . . . . . 1 . . Melee Attacks 441 | . . . . . . . 2 1 4 11 5 57 12 25 22 14 . 48 15 54 1 3 2 . 48 8 7 6 32 2 11 13 . . . 7 8 16 7 Impact 74 | . . . . . . . . . . . . 24 12 25 13 . . . . . . . . . . . . . . . . . . . . . . . . Slashing 363 | . . . . . . . 1 1 4 11 2 33 . . 9 14 . 48 15 54 1 3 2 . 48 8 7 6 32 2 11 13 . . . 7 8 16 7 Piercing . | . . . . . . . . . . . . . . . . . . . . . . . . . . . . . . . . . . . . . . . . Sneak Attacks 54 | . . . . . . . . . . . 3 7 . 8 1 2 . 4 . 4 . . . . 10 . 1 . 5 . 5 . . . . 3 . . 1 Combat Hostiles 1 | . . . . . . . . . . . . . . . . . . . . . . . . . . . . . 1 . . . . . . . . . . Follow-up Attacks . | . . . . . . . . . . . . . . . . . . . . . . . . . . . . . . . . . . . . . . . . Damage Inflicted 30342 | . 900 390 1589 187 . 45 2677 1670 2103 2910 1402 1174 77 861 1116 179 . 598 370 598 . . . . 1906 . 955 508 922 700 699 3773 . . . 552 306 . 1175 Guns 9241 | . 834 385 1289 161 . 23 1876 761 1860 1093 933 . . . . . . . . . . . . . . . . . . . . . . . . . . . 26 Cannons 210 | . . . 176 . . . . . . . . . . . . . . . . . . . . . . . 34 . . . . . . . . . . . . Explosions 11926 | . 34 . 120 . . . 791 909 173 1785 457 250 77 . 703 . . . . . . . . . 531 . 821 396 . 700 . 3269 . . . . . . 910 Melee 8819 | . . . . . . . . . 35 32 . 924 . 861 413 179 . 598 370 598 . . . . 1375 . 100 112 922 . 699 504 . . . 552 306 . 239 Ramming 146 | . 32 5 4 26 . 22 10 . 35 . 12 . . . . . . . . . . . . . . . . . . . . . . . . . . . . Kinetic 1520 | . 450 385 506 . . . . . . . 153 . . . . . . . . . . . . . . . . . . . . . . . . . . . 26 Thermal 4421 | . 34 . 120 . . . 450 443 1305 1093 780 . . . . . . . . . . . . . . . 196 . . . . . . . . . . . . Explosive 10808 | . . . . . . . 341 730 . 1785 457 250 77 . 703 . . . . . . . . . 531 . 659 396 . 700 . 3269 . . . . . . 910 Electromagnetic 4628 | . 384 . 959 161 . 23 1876 497 728 . . . . . . . . . . . . . . . . . . . . . . . . . . . . . . Impact 1457 | . . . . . . . . . . . . 275 . 861 321 . . . . . . . . . . . . . . . . . . . . . . . . Slashing 7362 | . . . . . . . . . 35 32 . 649 . . 92 179 . 598 370 598 . . . . 1375 . 100 112 922 . 699 504 . . . 552 306 . 239 Piercing . | . . . . . . . . . . . . . . . . . . . . . . . . . . . . . . . . . . . . . . . . Highest Corruption 15 | . 1 1 . . . . 2 3 3 3 3 2 . . 3 . 13 15 6 . . . . . 1 1 1 1 1 3 3 3 3 3 . . . . . Average Corruption 2 | . 1 1 . . . . 2 2 3 3 3 1 . . 2 . 10 11 6 . . . . . 1 1 1 1 1 1 3 3 3 3 . . . . . Corruption Purged 12 | . . . . . . . . . . . . 2 . . . . . 10 . . . . . . . . . . . . . . . . . . . . . Corruption Blocked . | . . . . . . . . . . . . . . . . . . . . . . . . . . . . . . . . . . . . . . . . Effects 244 | . 9 9 . . . . 19 21 47 22 21 4 . . 1 . 1 41 10 . . . . . 5 . . 2 6 1 21 4 . . . . . . . Message Errors 57 | . 2 3 . . . . 4 7 10 2 5 . . . . . . 13 2 . . . . . 1 . . 1 1 1 5 . . . . . . . . Matter Fused 66 | . 1 3 . . . . 6 7 6 10 5 2 . . . . . 8 4 . . . . . 1 . . 1 3 . 8 1 . . . . . . . Heat Flow Errors 30 | . 2 2 . . . . 2 3 7 2 2 1 . . . . . 5 . . . . . . . . . . 1 . 3 . . . . . . . . Energy Discharges 26 | . 1 1 . . . . 2 1 3 2 4 . . . . . . 5 1 . . . . . 1 . . . 1 . 2 2 . . . . . . . Parts Rejected 2 | . . . . . . . 1 . . . 1 . . . . . . . . . . . . . . . . . . . . . . . . . . . . Parts Fused 2 | . . . . . . . . . 2 . . . . . . . . . . . . . . . . . . . . . . . . . . . . . . Data Loss (minor) 30 | . 1 . . . . . . 1 11 6 . 1 . . 1 . . 3 1 . . . . . 2 . . . . . 2 1 . . . . . . . Data Loss (major) 8 | . 1 . . . . . . 1 1 . 2 . . . . . . 1 1 . . . . . . . . . . . 1 . . . . . . . . Misfires 5 | . . . . . . . 1 . 2 . 1 . . . . . . 1 . . . . . . . . . . . . . . . . . . . . . Alerts 9 | . 1 . . . . . 2 . 4 . 1 . . . . . . . 1 . . . . . . . . . . . . . . . . . . . . Misdirections 6 | . . . . . . . . . . . . . . . . . 1 5 . . . . . . . . . . . . . . . . . . . . . Weapon Failures 3 | . . . . . . . 1 1 1 . . . . . . . . . . . . . . . . . . . . . . . . . . . . . . Overload Shots 3 | . . . . . . . . . . . . 1 . . . . . . . . . . . . . 2 . . . . . . . . . . . . . Overflow Damage 2948 | . . . . . . . 33 38 33 34 4 260 . 654 198 99 . 139 67 95 . . . . 349 . 141 86 223 69 177 85 . . . 85 . . 79 Projectiles 10 | . . . . . . . . . . . . . . . . . . . . . . . . . . . 10 . . . . . . . . . . . . Explosions 428 | . . . . . . . 33 38 8 34 2 . . . . . . . . . . . . . . . 131 . . 69 . 85 . . . . . . 28 Melee 2510 | . . . . . . . . . 25 . 2 260 . 654 198 99 . 139 67 95 . . . . 349 . . 86 223 . 177 . . . . 85 . . 51 Knockbacks 7 | . . . . 1 . 1 . . . . . . . 4 1 . . . . . . . . . . . . . . . . . . . . . . . . Impact 7 | . . . . 1 . 1 . . . . . . . 4 1 . . . . . . . . . . . . . . . . . . . . . . . . Kinetic . | . . . . . . . . . . . . . . . . . . . . . . . . . . . . . . . . . . . . . . . . Secondary . | . . . . . . . . . . . . . . . . . . . . . . . . . . . . . . . . . . . . . . . . Self-Inflicted Damage 365 | . 20 . 35 . . . 40 . 94 39 6 45 37 . 33 . . . . . . . . . . . . . . . . 16 . . . . . . . Shots 13 | . 1 . 1 . . . 1 . 3 2 . 1 1 . 2 . . . . . . . . . . . . . . . . 1 . . . . . . . Rammed 13 | . 6 1 1 1 . . 2 . 1 . 1 . . . . . . . . . . . . . . . . . . . . . . . . . . . . Targets Rammed 18 | . 7 1 1 1 . 1 2 . 4 . 1 . . . . . . . . . . . . . . . . . . . . . . . . . . . . Kicked . | . . . . . . . . . . . . . . . . . . . . . . . . . . . . . . . . . . . . . . . . Crushed 5 | . 1 . . . . 1 . . 3 . . . . . . . . . . . . . . . . . . . . . . . . . . . . . . Highest Temperature 463 | . 244 227 463 84 . 48 143 324 306 451 214 244 127 . 30 . . 226 254 51 132 236 201 108 10 122 164 248 229 288 206 333 . 42 204 36 94 189 196 Average Temperature 64 | . 43 40 56 36 . 24 39 74 111 159 41 54 62 . 13 . . 97 69 13 52 44 37 53 3 56 58 109 40 113 51 83 . 42 134 16 35 89 75 Received Heat Transfer 2471 | . 129 129 297 18 . . 213 54 447 552 126 60 63 . 18 12 . 72 45 18 9 . 49 . . . . 6 45 67 . 42 . . . . . . . Effects 10 | . . . . . . . . 3 1 2 . . . . . . . . . . . . . . . . . 1 . 2 . 1 . . . . . . . Energy Bleed 6 | . . . . . . . . . 1 1 . . . . . . . . . . . . . . . . . 1 . 2 . 1 . . . . . . . Interference 3 | . . . . . . . . 3 . . . . . . . . . . . . . . . . . . . . . . . . . . . . . . . Short Circuit 1 | . . . . . . . . . . 1 . . . . . . . . . . . . . . . . . . . . . . . . . . . . . Siege Activations . | . . . . . . . . . . . . . . . . . . . . . . . . . . . . . . . . . . . . . . . . Robots Corrupted 13 | . 1 . 2 1 . . 1 . . . 1 1 . 5 1 . . . . . . . . . . . . . . . . . . . . . . . . Combat Hostiles 3 | . . . 1 1 . . 1 . . . . . . . . . . . . . . . . . . . . . . . . . . . . . . . . Parts Fried 45 | . 2 . 8 2 . . 12 4 3 . 3 3 . 8 . . . . . . . . . . . . . . . . . . . . . . . . . Impact Corruptions 29 | . . . . . . . . . . . 1 3 . 20 5 . . . . . . . . . . . . . . . . . . . . . . . . Robots Melted . | . . . . . . . . . . . . . . . . . . . . . . . . . . . . . . . . . . . . . . . . Combat Hostiles . | . . . . . . . . . . . . . . . . . . . . . . . . . . . . . . . . . . . . . . . . Parts Melted 2 | . . . . . . . 1 . 1 . . . . . . . . . . . . . . . . . . . . . . . . . . . . . . Heat Transferred 5189 | . 50 . 250 . . . 450 425 1685 1204 975 . . . . . . . . . . . . . . . 150 . . . . . . . . . . . . Parts Sabotaged . | . . . . . . . . . . . . . . . . . . . . . . . . . . . . . . . . . . . . . . . . Parts Stolen . | . . . . . . . . . . . . . . . . . . . . . . . . . . . . . . . . . . . . . . . . Parts Stripped . | . . . . . . . . . . . . . . . . . . . . . . . . . . . . . . . . . . . . . . . . Power Chain Reactions 17 | . 2 . 2 . . . 7 3 3 . . . . . . . . . . . . . . . . . . . . . . . . . . . . . . Alert | -11 -10 -10 -9 -9 -9 -8 -8 -8 -8 -8 -8 -7 -7 -7 -7 -6 -6 -6 -6 -5 -5 -5 -5 -4 -4 -4 -4 -4 -4 -4 -4 -4 -4 -4 -3 -2 -2 -1 -1 ------- Run | Yrd Mat Min Mat Min Exi Min Mat Gar Mat Gar Mat Fac Gar Fac Gar Fac Was Fac Gar Fac Upp Upp War Pro Fac Gar Fac Gar Fac Gar Fac Gar Fac DSF Res Res Tes Acc Com Peak Influence 1779 | . 350 160 439 74 . 45 340 1040 566 1247 661 255 586 318 331 416 107 226 258 231 . . . . 199 293 535 596 399 557 291 1078 565 395 252 86 1779 1160 1056 Initial 1100 | . . 19 24 9 . . . 11 507 163 607 100 69 307 23 173 77 67 32 135 . . . . . 37 153 189 312 53 291 16 565 395 222 8 47 1100 571 Average 235 | . 129 56 160 55 . 9 164 545 356 707 408 93 247 51 229 248 91 109 108 125 . . . . 56 120 233 383 118 210 32 478 565 395 33 67 1667 974 888 Maximum Alert Level 5 | . 1 . 2 . . . 1 3 2 4 2 1 2 1 1 2 . 1 1 1 . . . . . 1 2 2 1 2 1 3 2 1 1 . 5 4 3 Low Security (%) 57 | 100 63 100 63 100 . 100 58 23 5 9 3 90 64 90 22 15 100 90 94 89 . . . . 100 73 24 2 83 66 99 22 . . 90 100 1 . . Level 1 24 | . 36 . 29 . . . 41 12 54 19 47 9 7 9 77 76 . 9 5 10 . . . . . 26 60 51 16 14 . 17 . 100 9 . . . . Level 2 10 | . . . 6 . . . . 25 39 18 48 . 28 . . 7 . . . . . . . . . . 14 45 . 18 . 31 100 . . . . . 20 Level 3 5 | . . . . . . . . 37 . 36 . . . . . . . . . . . . . . . . . . . . . 28 . . . . . 60 79 Level 4 1 | . . . . . . . . . . 16 . . . . . . . . . . . . . . . . . . . . . . . . . . . 39 . Level 5 . | . . . . . . . . . . . . . . . . . . . . . . . . . . . . . . . . . . . . . . . . High Security . | . . . . . . . . . . . . . . . . . . . . . . . . . . . . . . . . . . . . . . . . Max Security . | . . . . . . . . . . . . . . . . . . . . . . . . . . . . . . . . . . . . . 98 . . Squads Dispatched 80 | . 3 1 2 . . . 1 . 5 . 1 10 . 4 . 3 . 9 . 13 . . . . 7 . 3 . 2 . 3 . . 1 . 2 2 4 4 Investigation 40 | . 2 . 1 . . . . . 1 . . 7 . 1 . 2 . 5 . 7 . . . . 6 . 1 . . . 1 . . . . 1 . 3 2 Extermination 15 | . . . . . . . . . . . . 2 . 2 . 1 . 2 . 2 . . . . 1 . 1 . 1 . 2 . . . . . . . 1 Reinforcement 18 | . 1 . 1 . . . 1 . 1 . 1 1 . . . . . 2 . 4 . . . . . . 1 . 1 . . . . 1 . 1 . 1 1 Assault 2 | . . 1 . . . . . . . . . . . . . . . . . . . . . . . . . . . . . . . . . . 1 . . Garrison 5 | . . . . . . . . . 3 . . . . 1 . . . . . . . . . . . . . . . . . . . . . . 1 . . Intercept . | . . . . . . . . . . . . . . . . . . . . . . . . . . . . . . . . . . . . . . . . Searches Triggered . | . . . . . . . . . . . . . . . . . . . . . . . . . . . . . . . . . . . . . . . . Construction Impeded 1 | . . . . . . . . . 1 . . . . . . . . . . . . . . . . . . . . . . . . . . . . . . Haulers Reinforced 1 | . . . . . . . . . . . . . . . . . . . . . . . . . . . 1 . . . . . . . . . . . . Active Scanning Responses . | . . . . . . . . . . . . . . . . . . . . . . . . . . . . . . . . . . . . . . . . Cargo Convoy Interrupts 1 | . . . . . . . . . . . . . . . . . . 1 . . . . . . . . . . . . . . . . . . . . . Stealth | -11 -10 -10 -9 -9 -9 -8 -8 -8 -8 -8 -8 -7 -7 -7 -7 -6 -6 -6 -6 -5 -5 -5 -5 -4 -4 -4 -4 -4 -4 -4 -4 -4 -4 -4 -3 -2 -2 -1 -1 --------- Run | Yrd Mat Min Mat Min Exi Min Mat Gar Mat Gar Mat Fac Gar Fac Gar Fac Was Fac Gar Fac Upp Upp War Pro Fac Gar Fac Gar Fac Gar Fac Gar Fac DSF Res Res Tes Acc Com Distress Signals 46 | . 2 . 4 . . . 2 . 4 . 1 3 . 1 1 . . 4 . 2 . . . . 5 . 7 . 3 . 1 . . . . 4 . . 2 Communications Jammed 16 | . . . . . . . . . 14 . 2 . . . . . . . . . . . . . . . . . . . . . . . . . . . . Distress Signals 16 | . . . . . . . . . 14 . 2 . . . . . . . . . . . . . . . . . . . . . . . . . . . . Times Spotted 611 | . 23 9 31 2 . 3 38 25 34 29 26 45 30 5 5 8 6 27 15 28 4 7 30 . 18 2 19 8 26 31 7 31 . 3 2 1 12 2 19 Peak Tracking Total 26 | . 4 2 4 2 . 2 4 6 5 6 3 8 17 5 4 6 6 9 11 5 4 4 15 . 8 2 8 5 7 26 3 17 . 3 1 1 9 1 10 Tactical Retreats 85 | . . . 1 . . . 4 2 3 1 2 15 4 . 2 3 . 8 3 12 1 3 . . 6 . 2 . 4 2 1 4 . . . . 1 . 1 Traps | -11 -10 -10 -9 -9 -9 -8 -8 -8 -8 -8 -8 -7 -7 -7 -7 -6 -6 -6 -6 -5 -5 -5 -5 -4 -4 -4 -4 -4 -4 -4 -4 -4 -4 -4 -3 -2 -2 -1 -1 ------- Run | Yrd Mat Min Mat Min Exi Min Mat Gar Mat Gar Mat Fac Gar Fac Gar Fac Was Fac Gar Fac Upp Upp War Pro Fac Gar Fac Gar Fac Gar Fac Gar Fac DSF Res Res Tes Acc Com Traps Triggered 69 | . 2 . 3 . . . 1 4 2 6 . 2 1 2 2 2 . 1 5 5 . . . . 3 2 . 4 2 2 2 . . . . . . . 16 Indirectly . | . . . . . . . . . . . . . . . . . . . . . . . . . . . . . . . . . . . . . . . . Trap Hack Attempts . | . . . . . . . . . . . . . . . . . . . . . . . . . . . . . . . . . . . . . . . . Triggered . | . . . . . . . . . . . . . . . . . . . . . . . . . . . . . . . . . . . . . . . . Disarmed . | . . . . . . . . . . . . . . . . . . . . . . . . . . . . . . . . . . . . . . . . Reprogrammed . | . . . . . . . . . . . . . . . . . . . . . . . . . . . . . . . . . . . . . . . . Reused . | . . . . . . . . . . . . . . . . . . . . . . . . . . . . . . . . . . . . . . . . Traps Extracted . | . . . . . . . . . . . . . . . . . . . . . . . . . . . . . . . . . . . . . . . . Installed . | . . . . . . . . . . . . . . . . . . . . . . . . . . . . . . . . . . . . . . . . Triggered 13 | . . . . . . . . 1 . . . . . . . . . . . . . . 9 3 . . . . . . . . . . . . . . . Machines | -11 -10 -10 -9 -9 -9 -8 -8 -8 -8 -8 -8 -7 -7 -7 -7 -6 -6 -6 -6 -5 -5 -5 -5 -4 -4 -4 -4 -4 -4 -4 -4 -4 -4 -4 -3 -2 -2 -1 -1 ---------- Run | Yrd Mat Min Mat Min Exi Min Mat Gar Mat Gar Mat Fac Gar Fac Gar Fac Was Fac Gar Fac Upp Upp War Pro Fac Gar Fac Gar Fac Gar Fac Gar Fac DSF Res Res Tes Acc Com Machines Disabled 68 | . . . 4 1 . . 6 7 4 5 . . 1 . 7 . . . 3 . . . . . . 4 11 4 1 2 . 6 . . . . 1 . 1 Max in Single Turn 9 | . . . 1 1 . . 2 1 2 1 . . 1 . 1 . . . 1 . . . . . . 2 9 1 1 1 . 2 . . . . 1 . 1 Garrison Access 6 | . . . . . . . . . . . . 2 . . . 2 . . . . . . . . 1 . . . . . . . . . . . 1 . . Garrison Relay 21 | . . . . . . . . 5 . 4 . . 1 . 2 . . . 2 . . . . . . 1 . 3 . 1 . 2 . . . . . . . Phase Generator 2 | . . . . . . . . . . . . . . . . . . . . . . . . . . 1 . . . . . 1 . . . . . . . Machines Repaired . | . . . . . . . . . . . . . . . . . . . . . . . . . . . . . . . . . . . . . . . . Machines Dismantled . | . . . . . . . . . . . . . . . . . . . . . . . . . . . . . . . . . . . . . . . . Machines Sabotaged . | . . . . . . . . . . . . . . . . . . . . . . . . . . . . . . . . . . . . . . . . Overloaded Fab Kills . | . . . . . . . . . . . . . . . . . . . . . . . . . . . . . . . . . . . . . . . . Hacking | -11 -10 -10 -9 -9 -9 -8 -8 -8 -8 -8 -8 -7 -7 -7 -7 -6 -6 -6 -6 -5 -5 -5 -5 -4 -4 -4 -4 -4 -4 -4 -4 -4 -4 -4 -3 -2 -2 -1 -1 --------- Run | Yrd Mat Min Mat Min Exi Min Mat Gar Mat Gar Mat Fac Gar Fac Gar Fac Was Fac Gar Fac Upp Upp War Pro Fac Gar Fac Gar Fac Gar Fac Gar Fac DSF Res Res Tes Acc Com Machines Accessed 223 | . 10 . 14 . 1 . 9 2 12 1 5 26 2 11 . 12 . 18 2 16 2 2 4 1 24 2 9 1 11 1 6 1 1 . 2 2 . 8 5 Terminals 147 | . 7 . 11 . . . 8 2 10 1 5 14 2 6 . 7 . 11 2 9 . . . 1 12 2 6 1 7 1 4 1 1 . 2 1 . 8 5 Fabricators 23 | . . . . . . . . . . . . 6 . 1 . 2 . 4 . 5 . . . . 5 . . . . . . . . . . . . . . Repair Stations 19 | . 1 . 2 . . . . . 1 . . 1 . 2 . 1 . 1 . 2 . . . . 2 . 1 . 3 . 1 . . . . 1 . . . Recycling Units 7 | . 2 . . . . . . . . . . 1 . 1 . . . . . . . . . . 2 . 1 . . . . . . . . . . . . Scanalyzers 4 | . . . 1 . . . . . . . . 1 . . . . . 1 . . . . . . 1 . . . . . . . . . . . . . . Garrison Access 14 | . . . . . . . 1 . 1 . . 3 . 1 . 2 . 1 . . . . . . 2 . 1 . 1 . 1 . . . . . . . . Total Hacks 704 | . 29 . 43 . 1 . 31 6 43 3 14 88 4 38 . 30 . 51 6 39 6 2 10 2 91 2 27 1 42 4 42 5 1 . 10 8 . 17 8 Successful 459 | . 17 . 23 . 1 . 15 2 28 . 6 61 2 25 . 21 . 37 3 31 6 2 10 2 54 2 24 1 29 1 32 2 1 . 8 5 . 6 2 Failed 244 | . 11 . 20 . . . 16 4 15 3 8 27 2 13 . 9 . 14 3 8 . . . . 37 . 3 . 13 3 10 3 . . 2 3 . 11 6 Catastrophic 26 | . . . . . . . 1 . 4 . 1 3 1 1 . . . 4 . 1 . . . . 3 . . . . . . . . . . . . 3 4 Database Lockouts 1 | . 1 . . . . . . . . . . . . . . . . . . . . . . . . . . . . . . . . . . . . . . Manual 329 | . 17 . 31 . 1 . 24 1 23 . 10 38 4 11 . 11 . 26 3 14 . . . . 37 1 13 1 24 4 17 2 . . 8 . . 2 6 Terminals 486 | . 23 . 36 . . . 30 6 33 3 14 50 4 25 . 19 . 37 6 24 . . . 2 51 2 20 1 31 4 18 5 1 . 10 6 . 17 8 Fabricators 76 | . . . . . . . . . . . . 27 . 3 . 5 . 10 . 11 . . . . 20 . . . . . . . . . . . . . . Repair Stations 85 | . 4 . 5 . . . . . 9 . . 2 . 8 . 3 . 1 . 4 . . . . 10 . 5 . 10 . 22 . . . . 2 . . . Recycling Units 10 | . 2 . . . . . . . . . . 1 . 1 . . . . . . . . . . 5 . 1 . . . . . . . . . . . . Scanalyzers 10 | . . . 2 . . . . . . . . 4 . . . . . 2 . . . . . . 2 . . . . . . . . . . . . . . Garrison Access 18 | . . . . . . . 1 . 1 . . 4 . 1 . 3 . 1 . . . . . . 3 . 1 . 1 . 2 . . . . . . . . Terminal Hacks 193 | . 7 . 11 . 1 . 7 2 9 . 4 18 1 9 . 6 . 20 2 11 6 2 10 2 17 2 11 1 8 . 6 2 1 . 6 3 . 6 2 Record 9 | . . . . . . . . . . . . . . . . . . . . . 5 1 1 2 . . . . . . . . . . . . . . . Part Schematic 6 | . . . . . . . . . . . . 2 . . . . . 1 . 3 . . . . . . . . . . . . . . . . . . . Robot Schematic 2 | . . . 1 . . . . . . . . 1 . . . . . . . . . . . . . . . . . . . . . . . . . . . Robot Analysis 6 | . 1 . 2 . . . . . . . . . . 1 . . . . . . . . . . . . . . . . . . . . 1 1 . . . Prototype ID Bank 23 | . 3 . 5 . . . 1 . . . . 3 . . . . . 1 . . . . 8 . . . 1 . . . . . . . . . . . 1 Open Door 7 | . . . . . . . . . . . . . . . . . . . . . 1 1 1 . . 1 . . . . . . . . . . . 3 . Open DSF 2 | . . . . . . . . . . . . . . . . . . . . 1 . . . . . . . . . . . . 1 . . . . . . Level Access Points 3 | . . . . . . . . . . . . . . . . 1 . 1 . . . . . . . . . . . . . . . . 1 . . . . Branch Access Points 7 | . . . . . . . . . . . . 1 . 1 . . . 1 . 1 . . . . 1 . 1 . . . . . . . . 1 . . . Emergency Access Points 1 | . . . . . . . . 1 . . . . . . . . . . . . . . . . . . . . . . . . . . . . . . . Machine Index 8 | . . . . . . . . . . . . . . . . 1 . 1 . 1 . . . . 1 . 1 . 1 . 1 . . . . 1 . . . Terminal Index 8 | . . . . . . . . . 1 . . 1 . 1 . . . . . . . . . . 1 . . . 1 . . . . . 2 . . 1 . Repair Station Index 1 | . . . . . . . . . . . . . . 1 . . . . . . . . . . . . . . . . . . . . . . . . . Garrison Index 2 | . . . . . . . . . . . . . . . . . . 1 . . . . . . 1 . . . . . . . . . . . . . . Alert Level 9 | . . . 1 . . . . . 2 . 1 2 . . . 1 . . . . . . . . . . 1 . 1 . . . . . . . . . . Unreport Threat 40 | . . . 2 . . . 4 . 3 . 3 3 . 3 . . . 4 . . . . . . 5 . 3 . 4 . 2 . . . 2 . . 2 . Locate Traps 4 | . 2 . . . . . . . . . . . . . . . . . . . . . . . 1 . . . 1 . . . . . . . . . . Maintenance Status 1 | . . . . . . . . . . . . . . . . . . . . . . . . . . . 1 . . . . . . . . . . . . Patrol Status 5 | . . . . . . . . . . . . . . 1 . . . 1 . . . . . . 1 . 1 . . . 1 . . . . . . . . Recall Investigation 18 | . . . . . . . . . 1 . . 3 . . . 2 . 5 . 3 . . . . 4 . . . . . . . . . . . . . . Recall Extermination 8 | . . . . . . . . . . . . . . 1 . 1 . 1 . 1 . . . . 1 . 1 . . . 2 . . . . . . . . Recall Reinforcements 2 | . . . . . . . . . . . . . . . . . . 1 . 1 . . . . . . . . . . . . . . . . . . . Hauler Manifests 8 | . . . . . . . 1 . 1 . . 2 . . . . . 2 . . . . . . 1 . 1 . . . . . . . . . . . . Zone Layout 3 | . 1 . . . . . 1 . 1 . . . . . . . . . . . . . . . . . . . . . . . . . . . . . . Garrison Registry 6 | . . . . . . . . 1 . . . . 1 . . . . . 1 . . . . . . 1 . 1 . . . 1 . . . . . . . Patrol Navigation 2 | . . . . . . . . . . . . . . . . . . . 1 . . . . . . . . . . . . 1 . . . . . . . Derelict Proto ID Bank 1 | . . . . . 1 . . . . . . . . . . . . . . . . . . . . . . . . . . . . . . . . . . Disengage Seal 1 | . . . . . . . . . . . . . . . . . . . . . . . . . . . . . . . . . . . . . . . 1 Fabricator Hacks 49 | . . . . . . . . . . . . 15 . 1 . 5 . 8 . 11 . . . . 9 . . . . . . . . . . . . . . Network Status 2 | . . . . . . . . . . . . 1 . 1 . . . . . . . . . . . . . . . . . . . . . . . . . Load Schematic 22 | . . . . . . . . . . . . 6 . . . 2 . 4 . 5 . . . . 5 . . . . . . . . . . . . . . Build 25 | . . . . . . . . . . . . 8 . . . 3 . 4 . 6 . . . . 4 . . . . . . . . . . . . . . Repair Station Hacks 75 | . 2 . 4 . . . . . 8 . . 2 . 8 . 2 . 1 . 4 . . . . 8 . 3 . 9 . 22 . . . . 2 . . . Scan Component 37 | . 1 . 2 . . . . . 4 . . 1 . 4 . 1 . . . 2 . . . . 4 . 2 . 4 . 11 . . . . 1 . . . Repair 36 | . 1 . 2 . . . . . 4 . . 1 . 4 . 1 . . . 2 . . . . 4 . 1 . 4 . 11 . . . . 1 . . . Refit 2 | . . . . . . . . . . . . . . . . . . 1 . . . . . . . . . . 1 . . . . . . . . . . Recycling Unit Hacks 5 | . . . . . . . . . . . . 1 . 1 . . . . . . . . . . 3 . . . . . . . . . . . . . . Retrieve Components 5 | . . . . . . . . . . . . 1 . 1 . . . . . . . . . . 3 . . . . . . . . . . . . . . Scanalyzer 9 | . . . 2 . . . . . . . . 4 . . . . . 2 . . . . . . 1 . . . . . . . . . . . . . . Insert Component 6 | . . . 2 . . . . . . . . 2 . . . . . 1 . . . . . . 1 . . . . . . . . . . . . . . Analyze 3 | . . . . . . . . . . . . 2 . . . . . 1 . . . . . . . . . . . . . . . . . . . . . Garrison Access Hacks 14 | . . . . . . . 1 . 1 . . 3 . 1 . 2 . 1 . . . . . . 2 . 1 . 1 . 1 . . . . . . . . Unlock Access 9 | . . . . . . . 1 . 1 . . 1 . 1 . . . 1 . . . . . . 1 . 1 . 1 . 1 . . . . . . . . Seal Access 5 | . . . . . . . . . . . . 2 . . . 2 . . . . . . . . 1 . . . . . . . . . . . . . . Unauthorized Hacks 114 | . 8 . 6 . . . 7 . 10 . 2 18 1 5 . 6 . 5 1 5 . . . . 14 . 9 . 11 1 3 . . . 2 . . . . Terminals 100 | . 6 . 6 . . . 7 . 10 . 2 13 1 5 . 6 . 4 1 5 . . . . 9 . 8 . 11 1 3 . . . 2 . . . . Track 5 | . . . . . . . . . . . . 1 . . . . . . . . . . . . 2 . . . 2 . . . . . . . . . . Assimilate 22 | . . . . . . . . . 2 . 1 2 . 1 . 1 . 2 . 1 . . . . 3 . 4 . 2 . 1 . . . 2 . . . . Botnet 27 | . 1 . 1 . . . 1 . 2 . 1 4 . 2 . 1 . 2 . 3 . . . . 2 . 2 . 3 . 2 . . . . . . . . Disrupt 1 | . . . . . . . . . . . . . . . . . . . . . . . . . 1 . . . . . . . . . . . . . . Operators 9 | . . . . . . . 1 . 1 . . 1 . 1 . 1 . . . 1 . . . . 1 . 1 . 1 . . . . . . . . . . Skim 33 | . 5 . 5 . . . 5 . 5 . . 5 . 1 . 3 . . . . . . . . . . 1 . 3 . . . . . . . . . . Override 3 | . . . . . . . . . . . . . 1 . . . . . 1 . . . . . . . . . . 1 . . . . . . . . . Fabricators 10 | . . . . . . . . . . . . 5 . . . . . 1 . . . . . . 4 . . . . . . . . . . . . . . Prioritize 5 | . . . . . . . . . . . . 3 . . . . . . . . . . . . 2 . . . . . . . . . . . . . . Liberate 3 | . . . . . . . . . . . . 1 . . . . . 1 . . . . . . 1 . . . . . . . . . . . . . . Haulers 2 | . . . . . . . . . . . . 1 . . . . . . . . . . . . 1 . . . . . . . . . . . . . . Repair Stations . | . . . . . . . . . . . . . . . . . . . . . . . . . . . . . . . . . . . . . . . . Recycling Units 4 | . 2 . . . . . . . . . . . . . . . . . . . . . . . 1 . 1 . . . . . . . . . . . . Recyclers 2 | . . . . . . . . . . . . . . . . . . . . . . . . . 1 . 1 . . . . . . . . . . . . Tunnel 2 | . 2 . . . . . . . . . . . . . . . . . . . . . . . . . . . . . . . . . . . . . . Scanalyzers . | . . . . . . . . . . . . . . . . . . . . . . . . . . . . . . . . . . . . . . . . Garrison Access . | . . . . . . . . . . . . . . . . . . . . . . . . . . . . . . . . . . . . . . . . Data Cores Recovered 2 | . . . 1 . . . . . 1 . . . . . . . . . . . . . . . . . . . . . . . . . . . . . . Used 1 | . . . 1 . . . . . . . . . . . . . . . . . . . . . . . . . . . . . . . . . . . . Hacking Detections 166 | . 8 . 14 . . . 8 2 10 1 5 20 2 8 . 8 . 13 2 12 . . . . 20 . 6 . 9 1 3 1 . . 1 2 . 6 4 Full Trace Events 37 | . . . . . . . . . 2 1 . 6 1 1 . 2 . 5 . 7 . . . . 6 . 1 . . . 1 . . . . . . 3 1 Feedback Events . | . . . . . . . . . . . . . . . . . . . . . . . . . . . . . . . . . . . . . . . . Feedback Blocked 2 | . . . . . . . . . . . . . . . . . . . . 1 . . . . . . . . . . . . . . . . . 1 . Robot Schematics Acquired 2 | . . . 1 . . . . . . . . 1 . . . . . . . . . . . . . . . . . . . . . . . . . . . Robots Built 12 | . . . . . . . . . . . . 6 . . . 2 . . . 3 . . . . 1 . . . . . . . . . . . . . . Authchips . | . . . . . . . . . . . . . . . . . . . . . . . . . . . . . . . . . . . . . . . . Time 427 | . . . . . . . . . . . . 197 . . . 67 . . . 134 . . . . 29 . . . . . . . . . . . . . . Total Robot Build Rating 33 | . . . . . . . . . . . . 10 . . . 8 . . . 12 . . . . 3 . . . . . . . . . . . . . . Part Schematics Acquired 9 | . . . . . . . . . . . . 4 . . . . . 2 . 3 . . . . . . . . . . . . . . . . . . . Parts Built 22 | . . . . . . . . . . . . 8 . . . 2 . 4 . 5 . . . . 3 . . . . . . . . . . . . . . Authchips . | . . . . . . . . . . . . . . . . . . . . . . . . . . . . . . . . . . . . . . . . Time 1601 | . . . . . . . . . . . . 393 . . . 201 . 261 . 556 . . . . 190 . . . . . . . . . . . . . . Total Part Build Rating 125 | . . . . . . . . . . . . 40 . . . 8 . 22 . 35 . . . . 20 . . . . . . . . . . . . . . Parts Repaired 36 | . 1 . 2 . . . . . 4 . . 1 . 4 . 1 . . . 2 . . . . 4 . 1 . 4 . 11 . . . . 1 . . . Time 2322 | . 26 . 111 . . . . . 146 . . 44 . 199 . 35 . . . 143 . . . . 216 . 54 . 259 . 1009 . . . . 80 . . . Parts Recycled . | . . . . . . . . . . . . . . . . . . . . . . . . . . . . . . . . . . . . . . . . Recycled Matter . | . . . . . . . . . . . . . . . . . . . . . . . . . . . . . . . . . . . . . . . . Retrieved Matter . | . . . . . . . . . . . . . . . . . . . . . . . . . . . . . . . . . . . . . . . . Retrieved Components 17 | . . . . . . . . . . . . 2 . 3 . . . . . . . . . . 12 . . . . . . . . . . . . . . Parts Scanalyzed 4 | . . . . . . . . . . . . 2 . . . . . 1 . . . . . . 1 . . . . . . . . . . . . . . Part Schematics Acquired 3 | . . . . . . . . . . . . 2 . . . . . 1 . . . . . . . . . . . . . . . . . . . . . Parts Damaged . | . . . . . . . . . . . . . . . . . . . . . . . . . . . . . . . . . . . . . . . . Bothacking | -11 -10 -10 -9 -9 -9 -8 -8 -8 -8 -8 -8 -7 -7 -7 -7 -6 -6 -6 -6 -5 -5 -5 -5 -4 -4 -4 -4 -4 -4 -4 -4 -4 -4 -4 -3 -2 -2 -1 -1 ------------ Run | Yrd Mat Min Mat Min Exi Min Mat Gar Mat Gar Mat Fac Gar Fac Gar Fac Was Fac Gar Fac Upp Upp War Pro Fac Gar Fac Gar Fac Gar Fac Gar Fac DSF Res Res Tes Acc Com Used RIF Installer 1 | . . . . . . . . . . . . . . . . . . . . . . . . . . . . . . . . 1 . . . . . . . Robots Hacked 2 | . . . . . . . . . . . 2 . . . . . . . . . . . . . . . . . . . . . . . . . . . . Non-combat 2 | . . . . . . . . . . . 2 . . . . . . . . . . . . . . . . . . . . . . . . . . . . Combat . | . . . . . . . . . . . . . . . . . . . . . . . . . . . . . . . . . . . . . . . . Robot Hacks Applied 3 | . . . . . . . . . . . 3 . . . . . . . . . . . . . . . . . . . . . . . . . . . . parse_system 1 | . . . . . . . . . . . 1 . . . . . . . . . . . . . . . . . . . . . . . . . . . . no_distress 1 | . . . . . . . . . . . 1 . . . . . . . . . . . . . . . . . . . . . . . . . . . . check_alert 1 | . . . . . . . . . . . 1 . . . . . . . . . . . . . . . . . . . . . . . . . . . . Relay Couplers Released 98 | . . . . . . . . 25 . 20 . . 3 . 7 . . . 9 . . . . . . 5 . 12 . 5 . 10 . . . . 2 . . Machine Destruction 95 | . . . . . . . . 22 . 20 . . 3 . 7 . . . 9 . . . . . . 5 . 12 . 5 . 10 . . . . 2 . . Programmers 3 | . . . . . . . . 3 . . . . . . . . . . . . . . . . . . . . . . . . . . . . . . . Fabnet Peak Effective % . | . . . . . . . . . . . . . . . . . . . . . . . . . . . . . . . . . . . . . . . . Robots Rewired 4 | . . . . . . . 1 . . . . . . . . . . . . . . . . . . 3 . . . . . . . . . . . . . Allies Hacked 2 | . . . . . . . . . . . . 1 . . . . . . . 1 . . . . . . . . . . . . . . . . . . . Hacks Repelled . | . . . . . . . . . . . . . . . . . . . . . . . . . . . . . . . . . . . . . . . . Allies | -11 -10 -10 -9 -9 -9 -8 -8 -8 -8 -8 -8 -7 -7 -7 -7 -6 -6 -6 -6 -5 -5 -5 -5 -4 -4 -4 -4 -4 -4 -4 -4 -4 -4 -4 -3 -2 -2 -1 -1 -------- Run | Yrd Mat Min Mat Min Exi Min Mat Gar Mat Gar Mat Fac Gar Fac Gar Fac Was Fac Gar Fac Upp Upp War Pro Fac Gar Fac Gar Fac Gar Fac Gar Fac DSF Res Res Tes Acc Com Total Allies 47 | . . 2 . . . . 1 . . . 1 8 . 1 1 3 . 7 . 4 . . . . 4 3 4 . 2 . 1 . . . 2 . . . 3 Largest Group 5 | . . 2 2 . . . 1 . . . 1 5 . 1 1 3 . 4 . 3 . . . . 2 2 4 . 1 . 1 1 . . 2 2 . . 3 Highest-Rated Group 541 | . . 62 62 . . . 21 . . . 26 48 . 10 54 90 . 100 . 60 . . . . 52 100 195 . 26 . 26 26 . . 36 36 . . 541 Highest-Rated Ally 219 | . . 31 31 . . . 21 . . . 26 26 . 10 54 32 . 41 . 26 . . . . 26 50 50 . 26 . 26 26 . . 26 26 . . 219 Total Orders 13 | . . . . . . . . . . . . 2 . . . 1 . . . . . . . . 1 . 1 . 4 . 4 . . . . . . . . STAY 8 | . . . . . . . . . . . . 1 . . . 1 . . . . . . . . 1 . 1 . 2 . 2 . . . . . . . . FOLLOW 5 | . . . . . . . . . . . . 1 . . . . . . . . . . . . . . . . 2 . 2 . . . . . . . . Ally Attacks 138 | . . . 54 . . . 5 . . . . 9 . . 4 8 . 15 . 6 . . . . . . 20 . . . . . . . . . . . 17 Total Damage 5002 | . . . 568 . . . 88 . . . . 268 . . 81 180 . 378 . 161 . . . . . . 1263 . . . . . . . . . . . 2015 Kills 29 | . . . 15 . . . 1 . . . . 1 . . 2 1 . 2 . 2 . . . . . . 3 . . . . . . . . . . . 2 Allies Corrupted 2 | . . . . . . . . . . . . . . . . . . 1 . 1 . . . . . . . . . . . . . . . . . . . Allies Melted 1 | . . . . . . . . . . . . 1 . . . . . . . . . . . . . . . . . . . . . . . . . . . Field Lobotomies 5 | . . . . . . . . . . . . . . . 1 . . 1 . . . . . . . . . . . . . . . . . . . . 3 Intel | -11 -10 -10 -9 -9 -9 -8 -8 -8 -8 -8 -8 -7 -7 -7 -7 -6 -6 -6 -6 -5 -5 -5 -5 -4 -4 -4 -4 -4 -4 -4 -4 -4 -4 -4 -3 -2 -2 -1 -1 ------- Run | Yrd Mat Min Mat Min Exi Min Mat Gar Mat Gar Mat Fac Gar Fac Gar Fac Was Fac Gar Fac Upp Upp War Pro Fac Gar Fac Gar Fac Gar Fac Gar Fac DSF Res Res Tes Acc Com Robot Analysis Total 6 | . 1 . 2 . . . . . . . . . . 1 . . . . . . . . . . . . . . . . . . . . 1 1 . . . Derelict Logs Recovered 7 | . . 2 . 1 . . . . . . . . . . . . . . . . 2 1 . 1 . . . . . . . . . . . . . . . Drone Launches . | . . . . . . . . . . . . . . . . . . . . . . . . . . . . . . . . . . . . . . . . Drone Recoveries . | . . . . . . . . . . . . . . . . . . . . . . . . . . . . . . . . . . . . . . . . Exploration | -11 -10 -10 -9 -9 -9 -8 -8 -8 -8 -8 -8 -7 -7 -7 -7 -6 -6 -6 -6 -5 -5 -5 -5 -4 -4 -4 -4 -4 -4 -4 -4 -4 -4 -4 -3 -2 -2 -1 -1 ------------- Run | Yrd Mat Min Mat Min Exi Min Mat Gar Mat Gar Mat Fac Gar Fac Gar Fac Was Fac Gar Fac Upp Upp War Pro Fac Gar Fac Gar Fac Gar Fac Gar Fac DSF Res Res Tes Acc Com Turns Passed 27282 | 68 1623 986 2850 480 474 686 1957 1161 2665 1436 1338 1801 199 527 231 482 27 1123 337 1274 200 118 323 58 1126 120 366 203 665 81 1156 235 3 18 61 149 86 211 378 Spaces Moved 31428 | 38 806 548 1116 205 211 302 741 437 907 487 621 4168 395 1077 443 1261 104 2462 458 2269 692 540 1121 291 2495 339 1044 481 1263 304 1049 440 3 49 139 305 256 692 869 Core 2 | 2 . . . . . . . . . . . . . . . . . . . . . . . . . . . . . . . . . . . . . . . Treads 5942 | 36 806 548 1116 205 211 302 741 437 907 487 146 . . . . . . . . . . . . . . . . . . . . . . . . . . . . Legs . | . . . . . . . . . . . . . . . . . . . . . . . . . . . . . . . . . . . . . . . . Wheels 491 | . . . . . . . . . . . 475 16 . . . . . . . . . . . . . . . . . . . . . . . . . . . Hover . | . . . . . . . . . . . . . . . . . . . . . . . . . . . . . . . . . . . . . . . . Flight 24993 | . . . . . . . . . . . . 4152 395 1077 443 1261 104 2462 458 2269 692 540 1121 291 2495 339 1044 481 1263 304 1049 440 3 49 139 305 256 692 869 Fastest Speed 5 | 50 160 160 160 225 225 225 225 225 225 228 105 17 14 26 20 26 26 11 5 20 20 6 6 20 20 6 5 5 6 6 17 7 17 6 5 17 12 12 5 Average Speed 59 | 154 160 160 221 225 225 225 225 225 226 236 159 26 25 26 27 28 26 23 21 21 20 19 19 20 20 18 19 16 19 17 19 17 17 17 16 17 16 13 14 Slowest Speed 480 | 160 160 160 305 225 225 225 225 225 228 320 480 120 26 94 29 29 26 26 23 29 20 20 20 20 93 20 90 20 20 20 90 20 17 20 17 17 17 14 84 Overloaded Moves 357 | . . . . . . . . . . . . 6 29 . 12 . . 24 50 . . 15 11 . . 8 8 85 6 31 . 41 . 4 7 . . . 20 Propulsion Burnouts . | . . . . . . . . . . . . . . . . . . . . . . . . . . . . . . . . . . . . . . . . Robots Hopped 122 | . . . . . . . . . . . . 8 3 2 . 5 . 2 7 19 . . 1 . 6 . 3 1 18 4 5 18 . 2 . 1 2 8 7 Cave-ins Triggered . | . . . . . . . . . . . . . . . . . . . . . . . . . . . . . . . . . . . . . . . . Exploration Rate (%) 52 | 3 95 98 96 43 60 85 80 68 75 60 49 82 62 28 48 22 81 66 52 47 80 80 94 58 46 47 30 57 36 53 16 63 1 44 6 9 38 26 23 Regions Visited 39 Branch Regions 10 Pre-discovered Areas 12 | . 2 . 1 1 . . 2 . 2 . . 2 . . . . . . . . 1 1 . . . . . . . . . . . . . . . . . Known Exits Taken 16 | . . . 1 . 1 1 1 . 1 . . 1 . 1 . . . 1 . 1 . . . . 1 . 1 . 1 . 1 . 1 . 1 1 . . . Unknown Exits Taken 11 | 1 1 1 . 1 . . . . . . 1 . . . . . . . . . 1 1 1 1 . . . . . . . . . . . . 1 1 . Scrap Searched 14 | . . 1 . 1 . 1 . . . . . . . . . . . . . . 4 4 . 3 . . . . . . . . . . . . . . . Spaces Dug 292 | . . . . . . . 1 1 3 2 2 44 10 16 8 11 . 38 4 46 1 5 2 . 31 2 15 . 18 . 11 . . . . 1 3 16 1 Terrain Destroyed 1021 | . 6 . 5 . . . 27 28 9 40 18 48 44 17 88 11 . 39 4 46 1 5 2 . 59 79 66 49 18 30 12 191 . . . 1 3 16 59 Melee 245 | . . . . . . . 1 . 3 . 2 37 10 15 8 11 . 33 4 41 1 3 2 . 26 . 6 . 18 . 3 . . . . 1 3 16 1 Projectile 47 | . . . . . . . . . . . . 7 . 2 . . . 6 . 5 . 2 . . 5 2 9 . . . 9 . . . . . . . . AOE 729 | . 6 . 5 . . . 26 28 6 40 16 4 34 . 80 . . . . . . . . . 28 77 51 49 . 30 . 191 . . . . . . 58 Terrain Rammed . | . . . . . . . . . . . . . . . . . . . . . . . . . . . . . . . . . . . . . . . . Walls Destroyed . | . . . . . . . . . . . . . . . . . . . . . . . . . . . . . . . . . . . . . . . . Machines Disabled . | . . . . . . . . . . . . . . . . . . . . . . . . . . . . . . . . . . . . . . . . Actions | -11 -10 -10 -9 -9 -9 -8 -8 -8 -8 -8 -8 -7 -7 -7 -7 -6 -6 -6 -6 -5 -5 -5 -5 -4 -4 -4 -4 -4 -4 -4 -4 -4 -4 -4 -3 -2 -2 -1 -1 --------- Run | Yrd Mat Min Mat Min Exi Min Mat Gar Mat Gar Mat Fac Gar Fac Gar Fac Was Fac Gar Fac Upp Upp War Pro Fac Gar Fac Gar Fac Gar Fac Gar Fac DSF Res Res Tes Acc Com Total 38239 | 45 1036 615 1391 216 212 304 898 518 1366 632 867 4750 463 1260 501 1354 103 2920 667 2952 751 544 1219 290 3027 377 1181 592 1607 320 1961 530 5 54 176 388 285 774 1088 Wait 5175 | . 143 38 146 5 . . 54 11 349 40 169 416 33 133 8 73 . 353 198 607 59 . 78 . 421 14 97 95 315 10 863 52 . 7 37 72 16 73 190 Move 31175 | 37 805 547 1115 204 210 301 741 436 907 486 620 4152 388 1073 442 1251 103 2458 444 2232 691 539 1118 290 2483 338 1038 477 1231 297 1039 409 2 45 138 303 251 680 854 Hop 99 | . . . . . . . . . . . . 8 3 2 . 5 . 2 5 17 . . 1 . 6 . 3 1 14 2 5 12 . 1 . . 2 3 7 Pick Up 115 | 2 11 4 24 1 1 . 13 . 8 2 5 10 . 2 3 2 . 4 . 2 . . 3 . 3 . . 1 . 1 5 5 1 . . . 1 1 . Fast Attach 135 | 6 5 . 14 . . . 1 . 5 3 5 11 . 5 1 4 . 11 . 15 . . 5 . 12 . 2 . 5 . 9 . . . . 3 3 . 10 Attach 72 | . 2 1 . . . . 5 1 3 4 3 14 . . 4 . . 2 2 3 . . 1 . 6 2 5 2 . 1 2 3 1 . 1 . . . 4 Detach 51 | . 2 . 3 . . . . . . . 1 11 . . 3 1 . 4 1 1 . . 1 . 6 2 6 2 1 . . 1 . . . . . . 5 Swap 184 | . 3 1 9 . . . 3 16 12 19 11 17 7 7 4 1 . 17 1 10 . . . . 6 4 8 2 6 2 10 4 . 1 . 2 1 . . Drop 140 | . 4 . 25 1 1 . 7 . 6 . 3 27 . 3 2 3 . 14 1 6 . . 10 . 6 . 1 . 2 1 4 4 1 . . 1 3 1 3 Fire 551 | . 54 23 54 4 . 2 66 47 68 61 44 21 2 3 12 . . 7 . 5 . 2 . . 7 4 14 3 . 4 9 27 . . . . . . 8 Melee 441 | . . . . . . . 2 1 4 11 5 57 12 25 22 14 . 48 15 54 1 3 2 . 48 8 7 6 32 2 11 13 . . . 7 8 16 7 Ram 1 | . . . . . . . . . . . 1 . . . . . . . . . . . . . . . . . . . . . . . . . . . . Kick . | . . . . . . . . . . . . . . . . . . . . . . . . . . . . . . . . . . . . . . . . Crush 17 | . 7 1 1 1 . 1 2 . 4 . . . . . . . . . . . . . . . . . . . . . . . . . . . . . . Escape Stasis 74 | . . . . . . . . 6 . 6 . 6 18 7 . . . . . . . . . . 23 . . 3 1 . 4 . . . . . . . . Rewire 9 | . . . . . . . 4 . . . . . . . . . . . . . . . . . . 5 . . . . . . . . . . . . . Trap . | . . . . . . . . . . . . . . . . . . . . . . . . . . . . . . . . . . . . . . . . Miscellaneous . | . . . . . . . . . . . . . . . . . . . . . . . . . . . . . . . . . . . . . . . . Route ------- -11/Scrapyard -10/Materials (discovered 6 exits: *Mat x3 / [*Min x2] / Sub) -10/Mines (discovered 2 exits: *Mat x2) -9/Materials (discovered 4 exits: *Mat x3 / *Min) -9/Mines (discovered 3 exits: Mat x2 / *Exi) -9/Exiles (discovered 2 exits: *Min x2) -8/Mines (discovered 2 exits: *Mat x2) -8/Materials (discovered 3 exits: *Fac x2 / Gar) -8/Garrison (discovered 3 exits: *Mat x3) -8/Materials (discovered 4 exits: *Fac x2 / Sto / Gar) -8/Garrison (discovered 2 exits: *Mat x2) -8/Materials (discovered 2 exits: *Fac / *Sto) -7/Factory (discovered 6 exits: *Fac x3 / *Low x2 / Gar) -7/Garrison (discovered 3 exits: *Fac x3) -7/Factory (discovered 4 exits: *Fac / *Low x2 / Gar) -7/Garrison -6/Factory (discovered 4 exits: *Fac x4) -6/Waste -6/Factory (discovered 7 exits: *Fac x4 / *Low x2 / Gar) -6/Garrison (discovered 3 exits: *Fac x3) -5/Factory (discovered 5 exits: *Fac / *Upp x2 / Ext x2) -5/Upper Caves -5/Upper Caves (discovered 2 exits: Fac / *War) -5/Warlord -4/Proximity Caves -4/Factory (discovered 5 exits: *Res x2 / *Upp x2 / Gar) -4/Garrison (discovered 4 exits: *Fac x4) -4/Factory (discovered 4 exits: *Res / *Upp x2 / Gar) -4/Garrison (discovered 3 exits: *Fac x3) -4/Factory (discovered 3 exits: *Res x2 / Gar) -4/Garrison (discovered 3 exits: *Fac x3) -4/Factory (discovered 2 exits: *Res / Gar) -4/Garrison (discovered 3 exits: *Fac x3) -4/Factory -4/DSF -3/Research (discovered 3 exits: *Res x3) -2/Research (discovered 2 exits: *Tes x2) -2/Testing -1/Access -1/Command To Epsilon Eridani History --------- Turn | Location | Event 4 | -11/Scrapyard | Discovered new exit (range 16) 69 | -11/Scrapyard | Entered Materials 304 | -10/Materials | Build established: Mutant 310 | -10/Materials | Discovered new exit (range 15) 432 | -10/Materials | Discovered new exit (range 7) 521 | -10/Materials | Central database locked down 611 | -10/Materials | Discovered new exit (range 10) 763 | -10/Materials | Discovered new exit (range 14) 927 | -10/Materials | Discovered new exit (range 15) 1143 | -10/Materials | Repaired Assault Rifle 1315 | -10/Materials | Learned 4 Subcaves zone layouts 1374 | -10/Materials | Identified exit to Subcaves 1424 | -10/Materials | Learned location of 3 exits from Materials 1465 | -10/Materials | Loaded intel: 8 trap records 1497 | -10/Materials | Learned 4 Subcaves zone layouts 1595 | -10/Materials | Learned Storage emergency access door positions 1692 | -10/Materials | Entered Mines 1703 | -10/Mines | Met a Derelict bent on vengeance 1766 | -10/Mines | Learned Materials terminal intel 1841 | -10/Mines | Discovered new exit (range 15) 2128 | -10/Mines | Found a damaged Exp. Sensor Array with a note attached 2131 | -10/Mines | Found Prototype Device 2219 | -10/Mines | Found DCF Scrap (15 items) 2336 | -10/Mines | Escorted by a lone wolf Derelict 2421 | -10/Mines | Learned Materials emergency access door positions 2424 | -10/Mines | A weapon hastily lodged in a ceiling crevice suddenly fell to the ground 2568 | -10/Mines | Core integrity fell below 50% 2630 | -10/Mines | Discovered new exit (range 10) 2632 | -10/Mines | Met a Derelict testing a Signal Generator 2678 | -10/Mines | Entered Materials 2678 | -9/Materials | Accompanied by 2 allies 2678 | -9/Materials | Evolved 2 slots: Propulsion x1, Utility x1 2679 | -9/Materials | Identified exit to Mines 2680 | -9/Materials | Identified exit to Materials 2682 | -9/Materials | Loaded intel: 12 terminal locations 3357 | -9/Materials | Build established: Scavenger-Mutant 3634 | -9/Materials | Learned location of 1 exit from Storage 3674 | -9/Materials | Loaded intel: 34 non-interactive machine locations 3695 | -9/Materials | Identified Exp. Sensor Array 3743 | -9/Materials | Learned Materials emergency access door positions 3757 | -9/Materials | Learned Recycling recycling unit intel 4405 | -9/Materials | Repaired Hvy. EM Shotgun 5105 | -9/Materials | Build established: Mutant 5384 | -9/Materials | Repaired Cld. Ion Engine 5528 | -9/Materials | Entered Mines 5535 | -9/Mines | Received a Rocket Launcher from a helpful Derelict 5619 | -9/Mines | Learned location of Zion (-6) 5695 | -9/Mines | Found a hidden stash of uninstalled traps 5801 | -9/Mines | Deemed a non-threat by the Exiles lab entrance 5801 | -9/Mines | Discovered new exit (range 5) 6008 | -9/Mines | Entered Exiles 6009 | -9/Exiles | Identified exit to Mines 6065 | -9/Exiles | Met 8R-AWN 6101 | -9/Exiles | Met EX-HEX 6168 | -9/Exiles | Met EX-BIN 6193 | -9/Exiles | Aligned with FarCom system 6195 | -9/Exiles | Given EX-Vault access code 6247 | -9/Exiles | Opened EX-Vault 6263 | -9/Exiles | Found Field Lobotomy Kit 6309 | -9/Exiles | Warned to stay clear of 0b10 Research branches 6377 | -9/Exiles | Met EX-DEC 6455 | -9/Exiles | Discovered exit to Mines (range 10) 6482 | -9/Exiles | Left Exiles lab with Field Lobotomy Kit 6482 | -9/Exiles | Entered Mines 6896 | -8/Mines | Discovered exit to Materials (range 11) 7091 | -8/Mines | Discovered exit to Materials (range 6) 7168 | -8/Mines | Entered Materials 7168 | -8/Materials | Evolved 2 slots: Propulsion x1, Utility x1 8282 | -8/Materials | Discovered new exit (range 3) 8520 | -8/Materials | Learned location of 3 exits from Factory 8634 | -8/Materials | Learned 4 Recycling zone layouts 8676 | -8/Materials | Learned 2 Storage zone layouts 8710 | -8/Materials | Learned location of Lower Caves (-6) 8734 | -8/Materials | Learned 4 Factory zone layouts 8768 | -8/Materials | Learned Storage terminal intel 8814 | -8/Materials | Learned location of Recycling (-8) 8872 | -8/Materials | Learned 2 Lower Caves zone layouts 8935 | -8/Materials | Discovered new exit (range 5) 9125 | -8/Materials | Identified exit to Garrison 9125 | -8/Materials | Entered Garrison 9225 | -8/Garrison | Triggered checkpoint 9248 | -8/Garrison | Garrison Relay disabled 9399 | -8/Garrison | Triggered checkpoint 9482 | -8/Garrison | Discovered new exit (range 8) 9501 | -8/Garrison | Triggered checkpoint 9544 | -8/Garrison | Garrison Relay disabled 9721 | -8/Garrison | Triggered checkpoint 9770 | -8/Garrison | Discovered new exit (range 42) 9770 | -8/Garrison | Discovered new exit (range 34) 9770 | -8/Garrison | Discovered new exit (range 33) 9798 | -8/Garrison | Garrison Relay disabled 9884 | -8/Garrison | Destroyed 9 combat bots 9897 | -8/Garrison | Triggered checkpoint 9922 | -8/Garrison | Garrison Relay disabled 10195 | -8/Garrison | Triggered checkpoint 10238 | -8/Garrison | Garrison Relay disabled 10286 | -8/Garrison | Entered Materials 10684 | -8/Materials | Repaired Adv. Treads 10734 | -8/Materials | Repaired Adv. Treads 10774 | -8/Materials | Repaired Adv. Treads 10807 | -8/Materials | Repaired Shield Generator 10845 | -8/Materials | Discovered new exit (range 5) 11209 | -8/Materials | Discovered new exit (range 5) 11586 | -8/Materials | Garrison activated, responded to threat 12374 | -8/Materials | Learned location of 2 exits from Factory 12400 | -8/Materials | Identified exit to Storage 12418 | -8/Materials | Learned location of Storage (-8) 12428 | -8/Materials | Learned Factory stockpile data 12429 | -8/Materials | Learned Storage garrison access intel 12437 | -8/Materials | Learned location of 1 exit from Lower Caves 12456 | -8/Materials | Learned Storage stockpile data 12951 | -8/Materials | Identified exit to Garrison 12951 | -8/Materials | Entered Garrison 13015 | -8/Garrison | Triggered checkpoint 13128 | -8/Garrison | Garrison Relay disabled 13245 | -8/Garrison | Triggered checkpoint 13364 | -8/Garrison | Garrison Relay disabled 13371 | -8/Garrison | Lost 3 parts (2n1u) 13475 | -8/Garrison | Spotted B-75 Beast 13475 | -8/Garrison | Spotted B-75 Beast 13539 | -8/Garrison | Triggered checkpoint 13541 | -8/Garrison | Triggered checkpoint 13575 | -8/Garrison | Destroyed 8 combat bots 13629 | -8/Garrison | Triggered checkpoint 13655 | -8/Garrison | Destroyed 7 combat bots 13714 | -8/Garrison | Discovered new exit (range 15) 13855 | -8/Garrison | Build established: Scavenger-Mutant 14162 | -8/Garrison | Discovered new exit (range 10) 14213 | -8/Garrison | Triggered checkpoint 14246 | -8/Garrison | Core integrity fell below 50% 14304 | -8/Garrison | Garrison Relay disabled 14387 | -8/Garrison | Entered Materials 14387 | -8/Materials | Discovered exit to Storage (range 8) 15364 | -8/Materials | Discovered new exit (range 5) 15572 | -8/Materials | Build established: Mutant 15725 | -8/Materials | Entered Factory 15725 | -7/Factory | Accompanied by 1 ally 15725 | -7/Factory | Evolved 2 slots: Utility x2 15726 | -7/Factory | Identified exit to Factory 15726 | -7/Factory | Identified exit to Lower Caves 16328 | -7/Factory | Repaired Med. Insulated Plating? 16399 | -7/Factory | Fabricated Cld. VTOL Module? 16407 | -7/Factory | Fabricated Lgt. Antimatter Reactor? 16527 | -7/Factory | Fabricated Cld. VTOL Module? 16637 | -7/Factory | Build established: Hacker-Sprinter 16849 | -7/Factory | Fabricated X-57 Shotgunner? 16918 | -7/Factory | Fabricated Cld. VTOL Module? 17233 | -7/Factory | Fabricated Stasis Canceller (x2) 17238 | -7/Factory | Fabricated K-01 Serf? 17331 | -7/Factory | Fabricated Cld. VTOL Module (x1) 17365 | -7/Factory | Learned 4 Hub_04(d) zone layouts 17408 | -7/Factory | Lost 3 allies 17507 | -7/Factory | Learned location of Upper Caves (-5) 17526 | -7/Factory | Identified exit to Garrison 17526 | -7/Factory | Entered Garrison 17534 | -7/Garrison | Triggered checkpoint 17535 | -7/Garrison | Garrison Relay disabled 17587 | -7/Garrison | Discovered new exit (range 8) 17632 | -7/Garrison | Triggered checkpoint 17632 | -7/Garrison | Triggered checkpoint 17661 | -7/Garrison | Spotted B-75 Beast 17661 | -7/Garrison | Spotted B-75 Beast 17666 | -7/Garrison | Triggered checkpoint 17668 | -7/Garrison | Discovered new exit (range 44) 17668 | -7/Garrison | Discovered new exit (range 35) 17668 | -7/Garrison | Discovered new exit (range 22) 17669 | -7/Garrison | Identified exit to Factory 17725 | -7/Garrison | Entered Factory 17732 | -7/Factory | Discovered exit to Factory (range 5) 17830 | -7/Factory | Repaired Cld. VTOL Module? 17891 | -7/Factory | Repaired Mic. Nuclear Core 17945 | -7/Factory | Repaired Stasis Canceller 18043 | -7/Factory | Repaired Cld. VTOL Module 18100 | -7/Factory | Garrison activated, responded to threat 18252 | -7/Factory | Identified exit to Garrison 18252 | -7/Factory | Entered Garrison 18264 | -7/Garrison | Triggered checkpoint 18282 | -7/Garrison | Garrison Relay disabled 18353 | -7/Garrison | Assimilated P-70 Sage with FLK Orb 18379 | -7/Garrison | Lost 3 parts (1n1u1w) 18420 | -7/Garrison | Discovered exit to Factory (range 13) 18429 | -7/Garrison | Garrison Relay disabled 18483 | -7/Garrison | Entered Factory 18483 | -6/Factory | Evolved 2 slots: Propulsion x1, Utility x1 18558 | -6/Factory | Identified exit to Factory 18749 | -6/Factory | Fabricated Y-54 Guardian? 18884 | -6/Factory | Repaired Cld. VTOL Module 18886 | -6/Factory | Fabricated Cld. VTOL Module? 18887 | -6/Factory | Fabricated Cld. VTOL Module? 18965 | -6/Factory | Sucked down chute 18965 | -6/Factory | Entered Waste 18968 | -6/Waste | Spotted C-40 Crusher 18973 | -6/Waste | Spotted C-40 Crusher 18975 | -6/Waste | Spotted C-40 Crusher 18978 | -6/Waste | Spotted C-40 Crusher 18980 | -6/Waste | EMP discharged 18980 | -6/Waste | System corruption reached 10% 18981 | -6/Waste | Spotted C-40 Crusher 18987 | -6/Waste | Discovered new exit (range 15) 18987 | -6/Waste | Spotted C-40 Crusher 18992 | -6/Waste | Entered Factory 18996 | -6/Factory | Discovered new exit (range 6) 19142 | -6/Factory | Fabricated Cld. VTOL Module? 19218 | -6/Factory | Identified exit to Lower Caves 19476 | -6/Factory | Fabricated Adv. Hacking Suite? 19481 | -6/Factory | Fabricated Adv. Hacking Suite (x1) 19520 | -6/Factory | Spotted B-75 Beast 19628 | -6/Factory | Fabricated Adv. Hacking Suite? 19957 | -6/Factory | Assimilated A-27 Freighter with FLK Orb 19958 | -6/Factory | Cargo convoy interrupted 20115 | -6/Factory | Identified exit to Garrison 20115 | -6/Factory | Entered Garrison 20162 | -6/Garrison | Garrison Relay disabled 20191 | -6/Garrison | Triggered checkpoint 20212 | -6/Garrison | Discovered exit to Factory (range 10) 20345 | -6/Garrison | Attempted to access garrison exit controls, blocked by remote lockdown 20428 | -6/Garrison | Discovered exit to Factory (range 59) 20428 | -6/Garrison | Discovered exit to Factory (range 16) 20428 | -6/Garrison | Discovered exit to Factory (range 44) 20435 | -6/Garrison | Garrison Relay disabled 20452 | -6/Garrison | Entered Factory 20452 | -5/Factory | Evolved 2 slots: Power x1, Propulsion x1 20453 | -5/Factory | Identified exit to Extension 20511 | -5/Factory | Identified exit to Upper Caves 20631 | -5/Factory | Fabricated Cld. Impulse Thruster? 20995 | -5/Factory | Spotted B-75 Beast 21040 | -5/Factory | Discovered new exit (range 10) 21087 | -5/Factory | Fabricated Cld. Impulse Thruster? 21131 | -5/Factory | Repaired Cld. Fission Core? 21139 | -5/Factory | Repaired Cld. Impulse Thruster 21206 | -5/Factory | Fabricated B-48 Gladiator? 21254 | -5/Factory | Lost 3 allies 21375 | -5/Factory | Fabricated Adv. System Shield? 21461 | -5/Factory | Fabricated Exp. Utility Shielding? 21529 | -5/Factory | Fabricated Cld. Impulse Thruster? 21726 | -5/Factory | Entered Upper Caves 21732 | -5/Upper Caves | Learned Extension emergency access door positions 21732 | -5/Upper Caves | Learned Armory security intel 21732 | -5/Upper Caves | Learned Armory terminal intel 21732 | -5/Upper Caves | Learned Factory garrison access intel 21733 | -5/Upper Caves | Met a Warlord Commander 21734 | -5/Upper Caves | Learned location of Warlord (-5) 21735 | -5/Upper Caves | Warlord Commander delivered Encrypted Comm Array 21827 | -5/Upper Caves | Learned 12 Factory zone layouts 21828 | -5/Upper Caves | Learned Factory stockpile data 21908 | -5/Upper Caves | Discovered new exit (range 5) 21909 | -5/Upper Caves | Encountered a Warlord checkpoint 21926 | -5/Upper Caves | Entered another Upper Caves area 21926 | -5/Upper Caves | Discovered new exit (range 11) 21942 | -5/Upper Caves | Attracted the attention of an 0b10 checkpoint 21988 | -5/Upper Caves | Learned location of Armory (-3) 22043 | -5/Upper Caves | Discovered new exit (range 10) 22044 | -5/Upper Caves | Entered Warlord 22056 | -5/Warlord | Discovered new exit (range 14) 22144 | -5/Warlord | Received a Watcher feed algorithm from an ecstatic Tinkerer 22165 | -5/Warlord | Warlord's base attacked by MAIN.C 22182 | -5/Warlord | Found Prototype Energy Gun 22182 | -5/Warlord | Identified Vortex Shotgun 22185 | -5/Warlord | Found Prototype Launcher 22185 | -5/Warlord | Identified Vortex Catalyst Activator 22225 | -5/Warlord | Met Warlord 22367 | -5/Warlord | Entered Proximity Caves 22424 | -4/Proximity Caves | Discovered new exit (range 10) 22425 | -4/Proximity Caves | Entered Factory 22425 | -4/Factory | Evolved 2 slots: Propulsion x1, Utility x1 22428 | -4/Factory | Loaded intel: 4 garrison access locations 22429 | -4/Factory | Identified exit to Upper Caves 22522 | -4/Factory | Repaired Cld. Impulse Thruster 22562 | -4/Factory | Spotted B-86 Titan 22659 | -4/Factory | Fabricated Cld. Impulse Thruster (x1) 22698 | -4/Factory | Discovered new exit (range 10) 22820 | -4/Factory | Fabricated Adv. Hacking Suite (x1) 22932 | -4/Factory | Repaired Cld. Impulse Thruster 22988 | -4/Factory | Repaired Cld. Impulse Thruster? 23062 | -4/Factory | Repaired Cld. Impulse Thruster 23243 | -4/Factory | Fabricated Adv. Hacking Suite? 23343 | -4/Factory | Discovered new exit (range 11) 23428 | -4/Factory | Fabricated O-24 Administrator? 23551 | -4/Factory | Identified exit to Garrison 23551 | -4/Factory | Entered Garrison 23583 | -4/Garrison | Spotted B-75 Beast 23583 | -4/Garrison | Discovered new exit (range 12) 23617 | -4/Garrison | Triggered checkpoint 23623 | -4/Garrison | Discovered new exit (range 37) 23623 | -4/Garrison | Discovered new exit (range 44) 23623 | -4/Garrison | Discovered new exit (range 39) 23623 | -4/Garrison | Discovered new exit (range 17) 23632 | -4/Garrison | Garrison Relay disabled 23639 | -4/Garrison | Phase Generator disabled 23653 | -4/Garrison | Triggered checkpoint 23671 | -4/Garrison | Entered Factory 23671 | -4/Factory | Accompanied by 3 allies 23691 | -4/Factory | Spotted B-86 Titan 23941 | -4/Factory | Repaired Cld. Impulse Thruster? 23978 | -4/Factory | Discovered new exit (range 4) 24037 | -4/Factory | Identified exit to Garrison 24037 | -4/Factory | Entered Garrison 24043 | -4/Garrison | Garrison Relay disabled 24097 | -4/Garrison | Triggered checkpoint 24127 | -4/Garrison | Discovered new exit (range 13) 24148 | -4/Garrison | Discovered new exit (range 67) 24148 | -4/Garrison | Discovered new exit (range 35) 24148 | -4/Garrison | Discovered new exit (range 25) 24149 | -4/Garrison | Triggered checkpoint 24230 | -4/Garrison | Garrison Relay disabled 24240 | -4/Garrison | Entered Factory 24369 | -4/Factory | Repaired Cld. Impulse Thruster 24427 | -4/Factory | Discovered new exit (range 4) 24486 | -4/Factory | Repaired Cld. Impulse Thruster 24561 | -4/Factory | Discovered new exit (range 14) 24763 | -4/Factory | Repaired Exp. Utility Shielding 24854 | -4/Factory | Repaired Cld. Fission Core? 24905 | -4/Factory | Identified exit to Garrison 24905 | -4/Factory | Entered Garrison 24916 | -4/Garrison | Garrison Relay disabled 24925 | -4/Garrison | Spotted B-86 Titan 24952 | -4/Garrison | Discovered new exit (range 10) 24981 | -4/Garrison | Identified exit to Factory 24986 | -4/Garrison | Entered Factory 25087 | -4/Factory | Discovered new exit (range 16) 25144 | -4/Factory | Repaired Exp. Utility Shielding? 25278 | -4/Factory | Repaired Cld. Impulse Thruster 25369 | -4/Factory | Repaired Cld. Fission Core 25426 | -4/Factory | Repaired Mic. Fission Core 25483 | -4/Factory | Repaired Smartbomb Launcher 25592 | -4/Factory | Repaired Cld. Impulse Thruster 25702 | -4/Factory | Repaired Cld. Impulse Thruster 25723 | -4/Factory | Build established: Wizard-Sprinter 25811 | -4/Factory | Repaired Cld. Impulse Thruster 25892 | -4/Factory | Repaired Cld. Plasma Cannon 26002 | -4/Factory | Repaired Cld. Impulse Thruster 26111 | -4/Factory | Repaired Cld. Impulse Thruster 26142 | -4/Factory | Identified exit to Garrison 26142 | -4/Factory | Entered Garrison 26142 | -4/Garrison | Accompanied by 1 ally 26153 | -4/Garrison | Garrison Relay disabled 26182 | -4/Garrison | Triggered checkpoint 26190 | -4/Garrison | Triggered checkpoint 26251 | -4/Garrison | Spotted B-86 Titan 26308 | -4/Garrison | Discovered new exit (range 10) 26334 | -4/Garrison | Triggered checkpoint 26337 | -4/Garrison | Discovered new exit (range 69) 26337 | -4/Garrison | Discovered new exit (range 26) 26337 | -4/Garrison | Discovered new exit (range 57) 26340 | -4/Garrison | Garrison Relay disabled 26345 | -4/Garrison | Installed Relay Interface Framework 26364 | -4/Garrison | Triggered checkpoint 26375 | -4/Garrison | Phase Generator disabled 26377 | -4/Garrison | Entered Factory 26380 | -4/Factory | Identified exit to DSF 26380 | -4/Factory | Entered DSF 26388 | -4/DSF | Discovered new exit (range 11) 26398 | -4/DSF | Entered Research 26398 | -3/Research | Evolved 2 slots: Utility x2 26404 | -3/Research | Identified exit to Research 26459 | -3/Research | Entered another Research area 26459 | -2/Research | Accompanied by 2 allies 26459 | -2/Research | Warlord forces began assault on 0b10 26459 | -2/Research | Evolved 2 slots: Propulsion x1, Utility x1 26460 | -2/Research | Identified exit to Testing 26512 | -2/Research | Spotted B-90 Cyclops 26569 | -2/Research | Research machine network offline 26596 | -2/Research | Repaired Exp. Utility Shielding 26608 | -2/Research | Entered Testing 26609 | -2/Testing | Maximum security lockdown engaged 26647 | -2/Testing | Found Prototype Reactor 26647 | -2/Testing | Identified Zero-point Reactor 26652 | -2/Testing | Garrison activated, responded to threat 26653 | -2/Testing | Found Zero-point Reactor 26660 | -2/Testing | Discovered new exit (range 14) 26694 | -2/Testing | Entered Access 26694 | -1/Access | Evolved 2 slots: Utility x2 26785 | -1/Access | Build established: Hacker-Ninja 26904 | -1/Access | Discovered new exit (range 7) 26905 | -1/Access | Entered Command 26948 | -1/Command | Disengaged cave seal 26948 | -1/Command | Derelicts emerged from the dark tunnel 26948 | -1/Command | Welcomed Warlord to Command 27119 | -1/Command | Lost 4 allies 27154 | -1/Command | Spotted Alpha 7 27154 | -1/Command | Spotted Striker 27154 | -1/Command | Spotted Executioner 27154 | -1/Command | Spotted Executioner 27154 | -1/Command | Spotted Alpha 7 27154 | -1/Command | Spotted Striker 27154 | -1/Command | Spotted Executioner 27154 | -1/Command | Spotted Executioner 27154 | -1/Command | Spotted B-99 Colossus 27154 | -1/Command | Spotted B-99 Colossus 27155 | -1/Command | Discovered new exit (range 8) 27155 | -1/Command | Assimilated B-99 Colossus with FLK Orb 27157 | -1/Command | Allies destroyed Executioner 27158 | -1/Command | Assimilated B-99 Colossus with FLK Orb 27161 | -1/Command | Assimilated Executioner with FLK Orb 27181 | -1/Command | Allies destroyed Alpha 7 27219 | -1/Command | Warlord destroyed during the assault 27228 | -1/Command | Found Prototype Processor 27228 | -1/Command | Identified Exp. Core Analyzer 27230 | -1/Command | Found Prototype Ballistic Gun 27230 | -1/Command | Identified Multirail 27235 | -1/Command | Found Multirail 27241 | -1/Command | Found Prototype Device 27241 | -1/Command | Identified Adv. Kinecellerator 27253 | -1/Command | Lost 9 allies 27283 | *** | Escaped! Last Messages --------------- 27243_ A bubble of rippling energy engulfs the area. 27243_ Stasis field depleted. 27243_ Triggered Stasis Trap. 27243_ A bubble of rippling energy engulfs the area. 27243_ Stasis field depleted. 27248_ Acquired Prototype Reactor. 27248_ Identified Imp. Quantum Reactor. 27251_ Acquired 5 matter. 27253_ Triggered Stasis Trap. 27253_ A bubble of rippling energy engulfs the area. 27253_ Stasis field depleted. 27256_ Triggered Stasis Trap. 27256_ A bubble of rippling energy engulfs the area. 27256_ Stasis field depleted. 27280_ EB-VZ7(K) triggered Stasis Trap. 27280_ A bubble of rippling energy engulfs the area. 27280_ Field strength at 85. 27281_ Field strength at 70. 27282_ Field strength at 55. 27283_ Field strength at 40. Map ----- +----------------------------------------------------+ | ??????# # ###*%! [ % #??????? | | ??????# # ## = # %# ###????????? | | ??????# / # !![# # #[%= ???????????? | | ??????# # # !*/=!!?#### = ??????????? | | ??????# # # !==![#?????# ?????????? | | ??????# # # %%%%=#?????? "?????????? | | ??????# ##############*=%%#?????? ????????????? | | ??????# #????????????#%!!=##????????????????????? | | ??????# #???????????##++++*#????????????????????? | | ??????# #???????????#^^]%=^#????????????????????? | | ??????# #??????????##^^^%^*###??????????????????? | | ??????# #??????????# ^K^!%/%=#??????????????????? | | ??????# #??????????##%^^%%^!%#??????????????????? | | ??????# #??????????# ^=%!^^%##??????????????????? | | ??????# #??????????##^^=!%!##???????????????????? | | ??????# #??????????#!^ *!!^!#???????????????????? | | ??????# #??????????##^^^%=!##???????????????????? | | ??????# #??????????#!%!^ !!#???????????????????? | | ??????# #????????###!^^%%^ ;###?????????????????? | | ??????# #????????#!%!!M[=%%!!%#?????????????????? | | ??????# #????????#*[!=] %! =* #?????????????????? | | ??????# #????????#!!^^] !* ##????????????????? | | ??????# #????????# *== !M ^ ;#????????????????? | | ??????# #????????# ^ ##????????????????? | | ??????# ########?# ^ M"" #?????????????????? | | ??????# # #?# "@ ^ #?????????????????? | | ??????# # ##; ^ #?????????????????? | | ??????# # ### ^ #?????????????????? | | ??????# # #?# ^^ ^^^ ;#????????????????? | | ??????# # ! #?# ##????????????????? | | ??????# # #?# #?????????????????? | | ??????# # #?##;#########;#?????????????????? | | ??????# # #??##?????????##?????????????????? | | ??????# + #????????????????????????????????? | | ??????# # #????????????????????????????????? | | ??????# # #????????????????????????????????? | | ??????# # #????????????????????????????????? | | ??????# + !#????????????????????????????????? | | ??????# # #????????????????????????????????? | | ????###+###########??????????????????????????????? | | ????# !! #??????????????????????????????? | | ????# !! #??????????????????????????????? | | ????# #??????????????????????????????? | | ????# #??????????????????????????????? | | ????# #??????????????????????????????? | | ????# ! ! #??????????????????????????????? | | ????###############??????????????????????????????? | | | | | | | +----------------------------------------------------+ Best States ------------- Heat Dissipation 78 Coolant Potential 100 Energy Generation 57 Energy Capacity 490 Matter Stores 300 Matter Capacity 300 Sight Range 22 Terrain Scan Density 10 ECM Strength 1 Jamming Range 12 Cloak Strength 3 Armor Coverage 225 Resistance: EM 20 Utility Shielding 90 Phase Shifting 15 Evasion (%) 93 Targeting Accuracy 6 Core Analysis 8 Recoil Reduction 4 Kinecelleration 50 Offensive Hacking 52 Defensive Hacking 24 Item Schematics ----------------- Cld. VTOL Module | -7/Factory | Hacked Stasis Canceller | -7/Factory | Hacked Lgt. Antimatter Reactor | -7/Factory | Scanalyzed Cld. Particle Cannon | -7/Factory | Scanalyzed Adv. Hacking Suite | -6/Factory | Hacked Cld. Impulse Thruster | -6/Factory | Scanalyzed Q-thruster | -5/Factory | Hacked Exp. Utility Shielding | -5/Factory | Hacked Adv. System Shield | -5/Factory | Hacked Robot Schematics ------------------ M-13 Machinist | -9/Materials | Hacked O-24 Administrator | -7/Factory | Hacked Fabricated ------------ Cld. VTOL Module | x1 | -7/Factory Lgt. Antimatter Reactor | x2 | -7/Factory | Preloaded Cld. VTOL Module | x1 | -7/Factory X-57 Shotgunner | x2 | -7/Factory | Preloaded Cld. VTOL Module | x1 | -7/Factory Stasis Canceller | x2 | -7/Factory K-01 Serf | x4 | -7/Factory | Preloaded Cld. VTOL Module | x1 | -7/Factory Y-54 Guardian | x2 | -6/Factory | Preloaded Cld. VTOL Module | x1 | -6/Factory Cld. VTOL Module | x1 | -6/Factory Cld. VTOL Module | x1 | -6/Factory Adv. Hacking Suite | x1 | -6/Factory Adv. Hacking Suite | x1 | -6/Factory Adv. Hacking Suite | x1 | -6/Factory Cld. Impulse Thruster | x1 | -5/Factory Cld. Impulse Thruster | x1 | -5/Factory B-48 Gladiator | x3 | -5/Factory | Preloaded Adv. System Shield | x1 | -5/Factory Exp. Utility Shielding | x1 | -5/Factory Cld. Impulse Thruster | x1 | -5/Factory Cld. Impulse Thruster | x1 | -4/Factory Adv. Hacking Suite | x1 | -4/Factory Adv. Hacking Suite | x1 | -4/Factory O-24 Administrator | x1 | -4/Factory Alien Tech Used ----------------- None Achievements -------------- None Challenges ------------ None Game ------ Seed PropulsionServoDesublimator Manual? 0 Play Time 03:59:53 Cumulative 542.4 hours Start 2024.11.25 @ 13:34:33 End 2024.11.25 @ 21:35:41 Sessions 9 Manual Loads 0 Difficulty Rogue Special Mode None Game No. 308 Rogue 308 Adventurer 0 Explorer 0 Win Type 0 Total 42 Types 28/3/5/1/1/0/2/1/1 Lore% 81 Gallery% 86 Achievement% 85 Wizard Run 0 Options --------- Layout 0 ASCII 0 Keyboard 1 Movement Numpad Keybinds 0 Fullscreen 2 Font 18/SmallcapsGlow Map View 76x50 Zoom Use 0% Tactical HUD 1 Map Filters NONE Filters NONE Steam 1 RUN: 91d7461f-c871-455c-b9a3-9e00f407f216